{"text_format":"1","workbook":"xlsx","n_sheets":17,"sheets":["Feuil1","C","P","Sh_modele","Fiche classe","Fiche récap des projets Ets","Bilan Compétences","Projet1","Projet2","Projet3","Projet4","Projet5","Projet6","Projet7","Projet8","Projet9","Projet10"],"not_rendered":{"charts":0,"images":3,"macros":1,"external_links":0,"defined_names":22,"comments":13,"pivot_tables":0},"unopened":[],"bounds":{"document_bytes":16777216,"sheet_cells":100000,"rows_first":2000,"rows_last":500,"rows_between":2000,"halvings":0,"cell_chars":16384,"cell_head_chars":4096},"cells_cut":0,"cells_raw":0,"read":"whole","date_system":"1900"}

{"sheet":"Feuil1","index":0,"n_rows":415,"n_cols":30,"rows_kept":415,"cut":false,"hidden":true,"merged":[[0,0,2,0],[0,10,0,12],[0,13,0,15],[0,16,0,19],[0,1,1,1],[0,2,1,2],[0,3,1,3],[0,4,1,4],[0,5,1,5],[0,6,0,9]]}
[null,"Groupement","Etablissement ","Rue","Ville","Téléphone","CHEF DE TRAVAUX",null,null,null,"PROFESSEUR SI",null,null,"PROFESSEUR ASSOCIE",null,null,"CHEF DETRAVUX COORDINATEUR",null,null,null,null,null,null,null,null,null," "]
[null,null,null,null,null,null,"NOM","PRENOM","TELEPHONE","COURRIEL ","NOM ","PRENOM","DISCIPLINE","NOM ","PRENOM","DISCIPLINE","NOM ","PRENOM","TELEPHONE "]
[null,"Groupement","Etablissement ","rue","ville",null,null,null,null,null,null,null,null,null,null,null,null,null,null,"COURRIEL ","EFFECTIF","code etab","courriel établissement"]
[null,"H","Adolphe Chérioux ","195 rue Julian Grimau","94408  Vity-Sur-Seine",145128787,"RUCKLY","Christian",145128763,{"$f":"LOWER(H4&\".\"&G4&\"@ac-creteil.fr\")","v":"christian.ruckly@ac-creteil.fr"},"LAFON","Jean-François","GM","TA","Quang Thanh","Physique","TETAR","Michel",145735331,{"$f":"LOWER(R4&\".\"&Q4&\"@ac-creteil.fr\")","v":"michel.tetar@ac-creteil.fr"},null,"0941294W",{"$f":"LOWER(\"ce.\"&V4&\"@ac-creteil.fr\")","v":"ce.0941294w@ac-creteil.fr"}]
[null,"E","André Malraux","4 avenue du Lycée","77130 Montereau-Fault-Yonne",164707171,"BONNIN","Claude",164707177,{"$f":"LOWER(H5&\".\"&G5&\"@ac-creteil.fr\")","v":"claude.bonnin@ac-creteil.fr"},"MONGOUACHON","Bruno","GM","KASPARIAN","Yves","Physique","BONNIN","Claude",164707177,"claude.bonnin@ac-creteil.fr",null,"0770938B",{"$f":"LOWER(\"ce.\"&V5&\"@ac-creteil.fr\")","v":"ce.0770938b@ac-creteil.fr"}]
[null,"C","Blaise Pascal ","15 Allée Commandant Guesnet","77170 Brie-Comte-Robert","01 64 05 22 65",null,null,null,null,"FABRE","Cyril","GM","VAN DE WEGHE","Michael","EPS","MARRO","Fabrice",160566080,"fabrice.marro@ac-creteil.fr",null,"0772230F",{"$f":"LOWER(\"ce.\"&V6&\"@ac-creteil.fr\")","v":"ce.0772230f@ac-creteil.fr"}]
[null,"B","Cabrini ","20 rue du Docteur Sureau","93160  Noisy-le-Grand",148151625,"KONEN","Catherine",148151636,"chefdetravaux@cabrini.fr","PIERROT","Franck","GE","MOUNZIL","Abdelmajid","Mathématiques","BLUZAT","David",143535229,"david.bluzat@ac-creteil.fr",null,null,"lgt@cabrini.fr"]
[null,"D","Camille Claudel ","place d'Anyama","77347  Pontault-Combault",164406023,"LEROY","Jean ",null,{"$f":"LOWER(H8&\".\"&G8&\"@ac-creteil.fr\")","v":"jean .leroy@ac-creteil.fr"},"POINTU","Christophe-René","GM","BOURLION","Lambert","physique-chimie","PAVILLON","Stephane",164347440,"stephane.pavillon@ac-creteil.fr",null,"0772243V",{"$f":"LOWER(\"ce.\"&V8&\"@ac-creteil.fr\")","v":"ce.0772243v@ac-creteil.fr"}]
[null,"F","Charles De Gaulle - Longperrier-TS2"," 6 Place Jean Mermoz","77230 Longperrier","01 64 02 75 23",null,null,null,null,"LARCHER","Sylvie","GE","GAZEAU","Cyril","anglais","ALBARACINE ","Sylvie",164663200,"sylvie.albaracine @ac-creteil.fr",null,"0772228d","ce.0772228d@ac-creteil.fr"]
[null,"F","Charles De Gaulle - Longperrier-TS3"," 6 Place Jean Mermoz","77230 Longperrier","01 64 02 75 23",null,null,null,null,"BOUTILLIER","Raphael","GE","GELINAT","Christelle","anglais","ALBARACINE ","Sylvie",164663200,"sylvie.albaracine @ac-creteil.fr",null,"0772228d","ce.0772228d@ac-creteil.fr"]
[null,"B","Charles de Gaulle -Rosny","102 rue Lavoisier","93110  Rosny-Sous-Bois","01 48 94 30 62",null,null,null,null,"MALEXIEUX","Alain","GE","GRIPPON","Nicolas","Mathématiques","BLUZAT","David",143535229,"david.bluzat@ac-creteil.fr",null,"0932031C","ce.0932031c@ac-creteil.fr"]
[null,"D","Christophe Colomb ","154 rue de Boissy","94370  Sucy-en-Brie",149822929,"Gavelle","Patrick",149822904,{"$f":"LOWER(H12&\".\"&G12&\"@ac-creteil.fr\")","v":"patrick.gavelle@ac-creteil.fr"},"BOUSQUET","Céline","GE","LINAIS","Stéphane","Maths","PAVILLON","Stephane",164347440,"stephane.pavillon@ac-creteil.fr",null,"0941918Z","ce.0941918z@ac-creteil.fr"]
[null,"E","Clément Ader ","76 rue Georges Clémenceau","77220  Tournan-en-Brie",164072018,"Lacaule","Sebastien",164073938,"sebastien.lacaule@ac-creteil.fr","DE BRITO PARENTE","philippe","SII ing. Méca","LESPERLETTE","François","Physique","BONNIN","Claude",164707177,"claude.bonnin@ac-creteil.fr",null,"0772342C","ce.0772342c@ac-creteil.fr"]
[null,"I","Condorcet-TS1","30 rue Désiré Chevalier","93105 Montreuil sous Bois",148575062,"ZALC","Arnauld",148572573,"arnauld.zalc@ac-creteil.fr","BERTHIER","Christophe","GM","DEMEURE","Lauriane","Physique","ZALC","Arnauld",148572573,"arnauld.zalc@ac-creteil.fr",null,"0930122C","ce.0930122c@ac-creteil.fr"]
[null,"I","Condorcet-TS3","31 rue Désiré Chevalier","93105 Montreuil sous Bois",148575063,"ZALC","Arnauld",148572574,"arnauld.zalc@ac-creteil.fr","YOUNSY","Akim","GE","DUBUISSON","Nicolas","Physique","ZALC","Arnauld",148572574,"arnauld.zalc@ac-creteil.fr",null,"0930122C","ce.0930122c@ac-creteil.fr"]
[null,"A","D'Arsonval 1","65 rue du Pont de Créteil ","94017  Saint-Maur-des-Fossés",148839843,"POTTIN","YANNICK",148839843,"yannick.pottin@ac-creteil.fr","LAZANO","Sérafin",null,"TARGET","Richard","Physique","POTTIN","Yannick",148839843,"yannick.pottin@ac-creteil.fr",null,"0940121W","ce.0940121w@ac-creteil.fr"]
[null,"A","D'Arsonval 2","65 rue du Pont de Créteil ","94017  Saint-Maur-des-Fossés",148839843,"POTTIN","YANNICK",148839843,"yannick.pottin@ac-creteil.fr","ONESTI","Philippe","Gm","POUSSEL","Fabien","Physique","POTTIN","Yannick",148839843,"yannick.pottin@ac-creteil.fr",null,"0940121W","ce.0940121w@ac-creteil.fr"]
[null,"C","De la Mare Carrée ","Rue du Lycée","77552  Moissy-Cramayel",164134422,"Mazurais","Fathoum",164134412,"fathoum.mazurais@ac-creteil.fr","LOUBET","Thierry-Nicolas","GM","JOLLY","Jean Baptiste","EPS","MARRO","Fabrice",160566081,"fabrice.marro@ac-creteil.fr",null,"0772296C","ce.0772296c@ac-creteil.fr"]
[null,"A","Édouard Branly","33 rue du Petit bois","94000  Créteil",143393475,"BERTRAND","Anne-Laurence",143396683,"anne-laurence.bertrand@ac-creteil.fr","BAUDOIN","Fabrice-Michel","GE","BOUCHER","Thierry","Physique","POTTIN","Yannick",148839843,"yannick.pottin@ac-creteil.fr",null,"0941018W","ce.0941018w@ac-creteil.fr"]
[null,"E","Etienne Bézout","31 avenue Etienne Dailly","77140  Nemours",164455030,"LHOTELLIER","Dominique",164455034,"dominique.lhotellier@ac-creteil.fr","AUDRY","Christian","GM","BOURDELOT","Sébastien","physique","BONNIN","Claude",164707177,"claude.bonnin@ac-creteil.fr",null,"0770940D","ce.0770940d@ac-creteil.fr"]
[null,"B","Evariste Galois ","32 avenue Montaigne","93160  Noisy-le-Grand",148151590,"ELHADAD","Myriam",148151595,"myriam.elhadad@ac-creteil.fr","HILAIRE","Richard","GM","JAY","Geraldine","Anglais","BLUZAT","David",143535229,"david.bluzat@ac-creteil.fr",null,"0932047V","ce.0932047v@ac-creteil.fr"]
[null,"A","François Arago ","36 avenue de l'Europe","94190  Villeneuve-Saint-Georges",145108700,"DANIEL","stephane",145108704,"stephane.daniel@ac-creteil.fr","BARAST","GILLES","GC","OUNOUGHI","Kamel","physique","POTTIN","Yannick",148839843,"yannick.pottin@ac-creteil.fr",null,"0941952L","ce.0941952l@ac-creteil.fr"]
[null,"A","François Mansart ","25 avenue de la Banque","94210 Saint-Maur-des-Fossés ",148834880,"TANGUY","Dominique",148834730,"dominique.tanguy@ac-creteil.fr","CONTRI","Alexandre","GM","GUILLORY","Gildas","Physique","POTTIN","Yannick",148839843,{"$f":"LOWER(R23&\".\"&Q23&\"@ac-creteil.fr\")","v":"yannick.pottin@ac-creteil.fr"},null,"0940585A","ce.0940585a@ac-creteil.fr"]
[null,"E","François Premier","11 rue Victor Hugo","77300 Fontainebleau","01 60 74 58 30    ",null,null,null,null,"BOURRIEAU","Alexandre","SII ","JEULAND","Johan","physique","BONNIN","Claude",164707177,{"$f":"LOWER(R24&\".\"&Q24&\"@ac-creteil.fr\")","v":"claude.bonnin@ac-creteil.fr"},null,"0770927P","ce.0770927p@ac-creteil.fr"]
[null,"C","Frédéric Joliot-Curie ","168 rue Frédéric Joliot-Curie","77196  Dammarie-Les-Lys",164393434,"MEGLOULI","Miloud",164397426,"miloud.meglouli@ac-creteil.fr","MICHEL","Jean-Christophe","GE","VACCA","Sebastien","Physique","MARRO","Fabrice",160566082,"fabrice.marro@ac-creteil.fr",null,"0771027Y","ce.0771027y@ac-creteil.fr"]
[null,"F","Gaston Bachelard ","32 avenue de l'Europe","77505 Chelles",164728888,"BARONI","Olivier",164728906,"olivier.baroni@ac-creteil.fr","BOUADDI","Aissa","GE","ALLOIN","Christian","Mathématiques","ALBARACINE ","Sylvie",164663200,"sylvie.albaracine @ac-creteil.fr",null,"0770922J","ce.0770922j@ac-creteil.fr"]
[null,"C","George Sand ","rue de la mare au diable","77 350 Le Mée sur Seine","01 60 56 52 00",null,null,null,null,"BEY","Sandrine","GE","MARCEROU","Sandrine","EPS","MARRO","Fabrice",160566083,"fabrice.marro@ac-creteil.fr",null,"0771663P","ce.0771663p@ac-creteil.fr"]
[null,"H","Guillaume Apollinaire ","42 Rue du Pavé de Grignon","94320 Thiais","01 48 52 58 77",null,null,null,null,"NEKERT","Didier","GM","LAGNES","Sophie-Agnès","SVT","TETAR","Michel",145735331,"michel.tetar@ac-creteil.fr",null,"0940123Y","ce.0940123y@ac-creteil.fr"]
[null,"H","Guillaume Budé"," 2 Voie Georges Pompidou","94450 Limeil-Brévannes","01 45 10 37 00",null,null,null,null,"GRANIER","Yohan","SI (Stagiaire)","GONTIER","Thomas","Mathématiques","TETAR","Michel",145735331,"michel.tetar@ac-creteil.fr",null,"0940742W","ce.0940742w@ac-creteil.fr"]
[null,"H","Gustave Eiffel - Cachan","61 avenue du president Wilson","94235  Cachan",147404720,"BRAUN","Jean-Michel",147404756,{"$f":"LOWER(H30&\".\"&G30&\"@ac-creteil.fr\")","v":"jean-michel.braun@ac-creteil.fr"},"VAN RHIJN","Jonathan","GM","DEMIRCI","Méliné","Physique","TETAR","Michel",145735331,"michel.tetar@ac-creteil.fr",null,"0940111K","ce.0940111k@ac-creteil.fr"]
[null,"I","Gustave Eiffel – Gagny","16 Chemin de la Renardière","93220 Gagny",143028036,"GUILLOU","Marc",164347440,{"$f":"LOWER(H31&\".\"&G31&\"@ac-creteil.fr\")","v":"marc.guillou@ac-creteil.fr"},"SCHANEN","Thierry","GE","MARCHAND","Christophe","Maths","ZALC","Arnauld",148572574,"arnauld.zalc@ac-creteil.fr",null,"0931272C","ce.0931272c@ac-creteil.fr"]
[null,"E","Internat d’Excellence ","Quartier de Lattre de Tassigny","77171 Sourdun","01 64 60 53 53",null,null,null,null,"MNAFAKH","Mériem",null,"MARGOUILLA","Aurélien","Physique","BONNIN","Claude",164707177,"claude.bonnin@ac-creteil.fr",null,"0772737G","ce.0772737g@ac-creteil.fr"]
[null,"G ","Jacques Feyder-TS3","10 Rue Henri Wallon","93800 Épinay-sur-Seine","01 49 71 72 00",null,null,null,null,"MARTINS","Sylvain","GM","BEASLAY","Tiphaine","Physique","ARMSPACH","Alain",149717008,"alain.armspach@ac-creteil.fr",null,"0930120A","ce.0930120a@ac-creteil.fr"]
[null,"G ","Jacques Feyder-TS4","10 Rue Henri Wallon","93800 Épinay-sur-Seine","01 49 71 72 00",null,null,null,null,"MARTINS","Sylvain","GM","DURAND-RAUCHER","Fanny","Physique","ARMSPACH","Alain",149717008,"alain.armspach@ac-creteil.fr",null,"0930120A","ce.0930120a@ac-creteil.fr"]
[null,"G ","JB de la Salle ","6-8 Place de la Résistance","93207 Saint-Denis",1558745000,"CHENE","Thierry",155874543,{"$f":"LOWER(H35&\".\"&G35&\"@jeanbaptistedelasalle.com\")","v":"thierry.chene@jeanbaptistedelasalle.com"},"LOUNIS","Djamal","GM","ELIOT","Mathieu","Physique","ARMSPACH","Alain",149717008,"alain.armspach@ac-creteil.fr",null,"0931797Y","ce.0931797y@ac-creteil.fr"]
[null,"H","Jean Macé","340 rue Jules Ferry","94407 Vitry-sur-Seine",145736300,"TETAR","Michel",145735331,{"$f":"LOWER(H36&\".\"&G36&\"@ac-creteil.fr\")","v":"michel.tetar@ac-creteil.fr"},"RASCOL","Vincent","GE","DELLIEUX","Cécile","Physique","TETAR","Michel",145735331,"michel.tetar@ac-creteil.fr",null,"0940129E","ce.0940129e@ac-creteil.fr"]
[null,"I","Jean Rostand ","8 ruze Pierre Audat","93420  Villepinte",149362444,"DUBRET","Pierre",149362429,{"$f":"LOWER(H37&\".\"&G37&\"@ac-creteil.fr\")","v":"pierre.dubret@ac-creteil.fr"},"MEUNIER","Benoit-Pierre","GE",null,null,null,"ZALC","Arnauld",148572574,"arnauld.zalc@ac-creteil.fr",null,"0931584s","ce.0931584s@ac-creteil.fr"]
[null,"D","Jules Ferry-TS5","4 Rue Henri Dunant","77120 Coulommiers","01 64 75 88 44",null,null,null,null,"VANSTEENKISTE","Ludovic","SI","BECKER","Germain","Mathématiques","PAVILLON","Stephane",164347440,"stephane.pavillon@ac-creteil.fr",null,"0770924L","ce.0770924l@ac-creteil.fr"]
[null,"D","Jules Ferry--TS6","4 Rue Henri Dunant","77120 Coulommiers","01 64 75 88 44",null,null,null,null,"SALIS","François","GM","ABRECHT","Jean-Baptiste","Mathématiques","PAVILLON","Stephane",164347440,"stephane.pavillon@ac-creteil.fr",null,"0770924L","ce.0770924l@ac-creteil.fr"]
[null,"E","La Fayette ","Place des Célestins","77430  Champagne-sur-Seine",164695410,"ZACCARDO","Vincenzo",164695422,{"$f":"LOWER(H40&\".\"&G40&\"@ac-creteil.fr\")","v":"vincenzo.zaccardo@ac-creteil.fr"},"LEVEQUE","Thierry","GM","BRUN","Olivier","Maths","BONNIN","Claude",164707177,"claude.bonnin@ac-creteil.fr",null,"0770920G","ce.0770920g@ac-creteil.fr"]
[null,"A","Langevin-Wallon","126 avenue Roger Salengro","94507  Champigny-Sur-Marne",148812833,"NICOLAS","Jean-Michel",148812502,{"$f":"LOWER(H41&\".\"&G41&\"@ac-creteil.fr\")","v":"jean-michel.nicolas@ac-creteil.fr"},"COLLEU","Yann","GM","BOITE","Xavier","Physique","POTTIN","Yannick",148839843,"yannick.pottin@ac-creteil.fr",null,"0940113M","ce.0940113m@ac-creteil.fr"]
[null,"G ","Le Corbusier-TSI1","44 rue Léopold Rechossière","93300 Aubervilliers",148337457,"BOUROUAHA","Soumia",148330909,"soumia.bourouaha@ac-creteil.fr","PERON","Jean-Luc","GM",null,null,"Physique","ARMSPACH","Alain",149717008,"courriel établissement",null,"0930117X","ce.0930117x@ac-creteil.fr"]
[null,"G ","Le Corbusier-TSI2","44 rue Léopold Rechossière","93300 Aubervilliers",148337457,"BOUROUAHA","Soumia",148330909,{"$f":"LOWER(H43&\".\"&G43&\"@ac-creteil.fr\")","v":"soumia.bourouaha@ac-creteil.fr"},"OULEDI","Gilles","GE","SCHMITT","Cedric-Bernard","Physique","ARMSPACH","Alain",149717008,{"$f":"W3","v":"courriel établissement"},null,"0930117X","ce.0930117x@ac-creteil.fr"]
[null,"C","Léonard de Vinci ","2 bis rue Edouard Branly","77011 Melun",160566060,"MARRO","Fabrice",160566080,{"$f":"LOWER(H44&\".\"&G44&\"@ac-creteil.fr\")","v":"fabrice.marro@ac-creteil.fr"},"PEUTOT","Christian","GE","BOS","Jean-Louis","Physique","MARRO","Fabrice",160566084,{"$f":"LOWER(R44&\".\"&Q44&\"@ac-creteil.fr\")","v":"fabrice.marro@ac-creteil.fr"},null,"0770934X","ce.0770934x@ac-creteil.fr"]
[null,"I","Léonard de Vinci ","115 Route des Petits Ponts","93290 Tremblay-en-France","01 41 51 19 20",null,null,null,null,"KAHLAT","Lamine","GM","GUILLAUMIE","Thomas","Mathématiques","ZALC","Arnauld",148572574,"arnauld.zalc@ac-creteil.fr",null,"0932046U","ce.0932046u@ac-creteil.fr"]
[null,"E","Les Pannevelles ","Route de Chalautre","77487  Provins",160585580,"THIANO","Dominique",160585532,{"$f":"LOWER(H46&\".\"&G46&\"@ac-creteil.fr\")","v":"dominique.thiano@ac-creteil.fr"},"JOUVENET","Michel-Ulrich","GE","GOSTIAU","Peter","Physique","BONNIN","Claude",164707177,"claude.bonnin@ac-creteil.fr",null,"0771336J","ce.0771336j@ac-creteil.fr"]
[null,"A","Louis Armand","173 boulevard de Strasbourg","94130  Nogent-sur-Marne",145142828,"CUSSINET","Thomas",145142833,"thomas.cussinet@ac-creteil.fr","GARCIA","Marc","GE","JOLY-KARAQUILLO","Amélie","Physique","POTTIN","Yannick",148839843,"yannick.pottin@ac-creteil.fr",null,"0940118t","ce.0940118t@ac-creteil.fr"]
[null,"G ","Marcel Cachin","11-13 rue Marcel Cachin","93400 Saint-Ouen",149189750,"BONNEMAIN ","Christian",149189762,"christian.bonnemain @ac-creteil.fr","SEHLI","Farid","GM","EL MESSKI ","Samira ","Physique","ARMSPACH","Alain",149717008,"alain.armspach@ac-creteil.fr",null,"0930140X","ce.0930140x@ac-creteil.fr"]
[null,"F","Martin Luther King-TS1","21 avenue du Général de Gaulle","77600  Bussy-Saint-Georges",164662641,"ALBARACINE ","Sylvie",164663200,"sylvie.albaracine @ac-creteil.fr","FLOCH","Herve","GE","BILLERACH","Vincent","physique","ALBARACINE ","Sylvie",164663200,"sylvie.albaracine @ac-creteil.fr",null,"0772292Y","ce.0772292y@ac-creteil.fr"]
[null,"F","Martin Luther King-TS2","21 avenue du Général de Gaulle","77600  Bussy-Saint-Georges",164662641,"ALBARACINE ","Sylvie",164663200,"sylvie.albaracine @ac-creteil.fr","JOBERT","Laurent","GM","CUESTA","Thierry","Mathematiques","ALBARACINE ","Sylvie",164663200,"sylvie.albaracine @ac-creteil.fr",null,"0772292Y","ce.0772292y@ac-creteil.fr"]
[null,"B","Maximilien Perret ","Place San Benedetto","94140  Alforville",143535200,"BLUZAT","David",143535229,"david.bluzat@ac-creteil.fr","ROGER","Emmanuel","GE","BREGEON","Antoine","Mathématiques","BLUZAT","David",143535229,"david.bluzat@ac-creteil.fr",null,"0940126B","ce.0940126b@ac-creteil.fr"]
[null,"G ","Paul Eluard","15 avenue Jean Moulin","93206 Saint-Denis",149717000,"ARMSPACH","Alain",149717008,"alain.armspach@ac-creteil.fr","SELLAM","Henri","GE","GANDOLFI","Pierre","Physique","ARMSPACH","Alain",149717008,"alain.armspach@ac-creteil.fr",null,"0930125F","ce.0930125f@ac-creteil.fr"]
[null,"I","Paul Le Roland","136 avenue de Castelnau","93700 Drancy",148320130,"FERNANDEZ","Dominique",148328858,"dominique.fernandez@ac-creteil.fr","AMZAL","Yamina","GE","BOUVERET","Adrien","Physique","ZALC","Arnauld",148572574,"arnauld.zalc@ac-creteil.fr",null,"0930540G","ce.0930540g@ac-creteil.fr"]
[null,"D","Pierre de Coubertin ","7 avenue de Melun","771000   Meaux",164345727,"PAVILLON","Stephane",164347440,"stephane.pavillon@ac-creteil.fr","ROMARY","Alain","GM","LAURENT","Agnès","Physique","PAVILLON","Stephane",164347440,"stephane.pavillon@ac-creteil.fr",null,"0770931U","ce.0770931u@ac-creteil.fr"]
[null,"F","René Cassin - Noisiel","1 avenue Mendés France","77186 Noisiel",160375656,"RICHARD","James",160375652,"james.richard@ac-creteil.fr","BLANC","Laurent","GM","TOMIMITSU","Clotilde","Physique","ALBARACINE ","Sylvie",164663200,"sylvie.albaracine @ac-creteil.fr",null,"0771941S","ce.0771941s@ac-creteil.fr"]
[null,"D","Van Dongen-TS1","45 Avenue Jean Mermoz","77400 Lagny-sur-Marne","01 64 02 30 11",null,null,null,null,"BALDI","Francois","GM","JOUANNEAU","Catherine","Hist.-Géo.","PAVILLON","Stephane",164347440,"stephane.pavillon@ac-creteil.fr",null,"0771512A","ce.0771512a@ac-creteil.fr"]
[null,"D","Van Dongen-TS2","45 Avenue Jean Mermoz","77400 Lagny-sur-Marne","01 64 02 30 11",null,null,null,null,"BALDI","Francois","GM","BONNARDOT","Delphine","Anglais","PAVILLON","Stephane",164347440,"stephane.pavillon@ac-creteil.fr",null,"0771512A","ce.0771512a@ac-creteil.fr"]
[null,"I","Voillaume -TS1","136 rue de Mitry","93600 Aulnay-sous-Bois",148193193,"LAGIRARDE","Thomas",148193170,{"$f":"LOWER(H58&\".\"&G58&\"@ac-creteil.fr\")","v":"thomas.lagirarde@ac-creteil.fr"},"ATTMANI","Mohamed","GE","DATHIE","Vincent","Physique","ZALC","Arnauld",148572574,"arnauld.zalc@ac-creteil.fr",null,"0930834B","ce.0930834b@ac-creteil.fr"]
[null,"I","Voillaume-TS3","136 rue de Mitry","93600 Aulnay-sous-Bois",148193193,"LAGIRARDE","Thomas",148193170,{"$f":"LOWER(H59&\".\"&G59&\"@ac-creteil.fr\")","v":"thomas.lagirarde@ac-creteil.fr"},"ATTMANI","Mohamed","GE","DATHIE","Vincent","Physique","ZALC","Arnauld",148572574,"arnauld.zalc@ac-creteil.fr",null,"0930834B","ce.0930834b@ac-creteil.fr"]
[null,"G ","Wolfgang Amadeus Mozart ","10 Avenue Charles de Gaulle","93150 Le Blanc-Mesnil","01 49 39 07 75",null,null,null,null,"DELMON","Guy","GM","AAQQAD","Rachid","Physique","ARMSPACH","Alain",149717008,"alain.armspach@ac-creteil.fr",null,"0932034F","ce.0932034f@ac-creteil.fr"]
[]
[]
[]
[]
[]
[]
[]
[]
[]
[]
[]
[]
[]
[]
[]
[]
[]
[]
[]
[]
[]
[]
[]
[]
[]
[]
[]
[]
[]
[]
[]
[]
[]
[]
[]
[]
[]
[]
[]
[]
[]
[]
[]
[]
[]
[]
[]
[]
[]
[]
[]
[]
[]
[]
[]
[]
[]
[]
[]
[]
[]
[]
[]
[]
[]
[]
[]
[]
[]
[]
[]
[]
[]
[]
[]
[]
[]
[]
[]
[]
[]
[]
[]
[]
[]
[]
[]
[]
[]
[]
[]
[]
[]
[]
[]
[]
[]
[]
[]
[]
[]
[]
[]
[]
[]
[]
[]
[]
[]
[]
[]
[]
[]
[]
[]
[]
[]
[]
[]
[]
[]
[]
[]
[]
[]
[]
[]
[]
[]
[]
[]
[]
[]
[]
[]
[]
[]
[]
[]
[]
[]
[]
[]
[]
[]
[]
[]
[]
[]
[]
[]
[]
[]
[]
[]
[]
[]
[]
[]
[]
[]
[]
[]
[]
[]
[]
[]
[]
[]
[]
[]
[]
[]
[]
[]
[]
[]
[]
[]
[]
[]
[]
[]
[]
[]
[]
[]
[]
[]
[]
[]
[]
[]
[]
[]
[]
[]
[]
[]
[]
[]
[]
[]
[]
[]
[]
[]
[]
[]
[]
[]
[]
[]
[]
[]
[]
[]
[]
[]
[]
[]
[]
[]
[]
[]
[]
[]
[]
[]
[]
[]
[]
[]
[]
[]
[]
[]
[]
[]
[]
[]
[]
[]
[]
[]
[]
[]
[]
[]
[]
[]
[]
[]
[]
[]
[]
[]
[]
[]
[]
[]
[]
[]
[]
[]
[]
[]
[]
[]
[]
[]
[]
[]
[]
[]
[]
[]
[]
[]
[]
[]
[]
[]
[]
[]
[]
[]
[]
[]
[]
[]
[]
[]
[]
[]
[]
[]
[]
[]
[]
[]
[]
[]
[]
[]
[]
[]
[]
[]
[]
[]
[]
[]
[]
[]
[]
[]
[]
[]
[]
[]
[]
[]
[]
[]
[]
[]
[]
[]
[]
[]
[]
[]
[]
[]
[]
[]
[]
[]
[]
[]
[]
[]
[]
[]
[null,null,null,null,null,null,null,null,null,null,null,null,null,null,null,null,null,null,null,null,null,null,null,null,null,null,null,"Projet1","ÉLÈVE 1"]
[null,null,null,null,null,null,null,null,null,null,null,null,null,null,null,null,null,null,null,null,null,null,null,null,null,null,null,"Projet2","ÉLÈVE 2","X"]
[null,null,null,null,null,null,null,null,null,null,null,null,null,null,null,null,null,null,null,null,null,null,null,null,null,null,null,"Projet3","ÉLÈVE 3"]
[null,null,null,null,null,null,null,null,null,null,null,null,null,null,null,null,null,null,null,null,null,null,null,null,null,null,null,"Projet4","ÉLÈVE 4"]
[null,null,null,null,null,null,null,null,null,null,null,null,null,null,null,null,null,null,null,null,null,null,null,null,null,null,null,"Projet5","ÉLÈVE 5"]
[null,null,null,null,null,null,null,null,null,null,null,null,null,null,null,null,null,null,null,null,null,null,null,null,null,null,null,"Projet6"]
[null,null,null,null,null,null,null,null,null,null,null,null,null,null,null,null,null,null,null,null,null,null,null,null,null,null,null,"Projet7"]
[null,null,null,null,null,null,null,null,null,null,null,null,null,null,null,null,null,null,null,null,null,null,null,null,null,null,null,"Projet8"]
[null,null,null,null,null,null,null,null,null,null,null,null,null,null,null,null,null,null,null,null,null,null,null,null,null,null,null,"Projet9"]
[null,null,null,null,null,null,null,null,null,null,null,null,null,null,null,null,null,null,null,null,null,null,null,null,null,null,null,"Projet10"]

{"sheet":"C","index":1,"n_rows":18,"n_cols":6,"rows_kept":18,"cut":false,"hidden":true,"merged":[]}
["C_B3","C_B3","C_B4","C_C1","C_C2","C_D1"]
["C_B4"]
["C_C1","C_B3.1 Les paramètres de simulation sont adaptés aux grandeurs à simuler","C_B4.1 Les résultats obtenus sont bien interprétés, en amplitude et variation, de façon conforme aux lois et principes d'évolution des grandeurs physiques ","C_C1.1  Les grandeurs à mesurer sont bien identifiées, leur nature et caractéristiques bien définies","C_C2.1 Le système est correctement mis en œuvre","C_D1.1 Les outils de recherche documentaire sont bien choisis et maîtrisés. "]
["C_C2","C_B3.2 Les plages de simulations retenues sont correctement définies","C_B4.2 Les principales limites sont explicitées ","C_C1.2 Les éléments de la chaîne d'acquisition sont correctement identifiés","C_C2.2 Les capteurs et les appareils de mesure sont correctement mis en œuvre","C_D1.2 Une synthèse des informations collectées est correctement réalisée"]
["C_D1",null,"C_B4.3 Les paramètres modifiés sont pertinents et font évoluer  les résultats simulés vers ceux attendus au cahier des charges","C_C1.3 Les choix et réglages des capteurs et appareils de mesure sont correctement explicités","C_C2.3 Le protocole d'essai est respecté ","C_D1.3 Les informations sont traitées selon des critères pertinents"]
[null,null,"C_B4.4 Les paramètres modifiés sont pertinents et font évoluer les résultats simulés vers les résultats expérimentaux",null,"C_C2.4 Les règles de sécurité sont connues et respectées","C_D1.4 Les informations sont vérifiées et mises à jour"]
[null,null,"C_B4.5 Les résultats obtenus, en amplitude et variation, sont conformes aux attendus du cahier des charges",null,"C_C2.5 Les méthodes et outils de traitement sont cohérents avec le problème posé"]
[null,null,"C_B4.6 Les résultats obtenus, en amplitude et variation, sont conformes aux résultats expérimentaux"]
[]
[]
[]
[]
[]
["B3_C"]
["B4_C"]
["C1_C"]
["C2_C"]
["D1_C"]

{"sheet":"P","index":2,"n_rows":6,"n_cols":7,"rows_kept":6,"cut":false,"hidden":true,"merged":[]}
["P_A1","P_A1","P_A3","P_C1","P_C2","P_D1","P_D2"]
["P_A3"]
["P_C1","P_A1.1 Le besoin et la fonction globale sont bien définis ","P_A3.1 Les écart constatés entre le CDC et les résultats expérimentaux sont expliqués","P_C1.1 Le comportement est précisément décrit","P_C2.1 Les résultats expérimentaux sont traités et présentés clairement","P_D1.1 Les informations présentées sont bien choisies ","P_D2.1 Le support est bien choisi et adapté à l'objectif de présentation"]
["P_C2","P_A1.2 Le problème technique est bien décrit","P_A3.2 Les écart constatés entre les résultats simulés et les résultats expérimentaux sont expliqués","P_C1.2 Un protocole expérimental adapté est décrit",null,null,"P_D2.2 Un document multimédia est bien réalisé et scénarisé"]
["P_D1",null,"P_A3.3 Les écart constatés entre le CDC et les résultats simulés sont expliqués",null,null,null,"P_D2.3 La production respecte le cahier des charges (écrit/oral, texte/vidéo, durée, public visé, …)"]
["P_D2"]

{"sheet":"Sh_modele","index":3,"n_rows":77,"n_cols":23,"rows_kept":77,"cut":false,"hidden":true,"merged":[[0,2,0,14],[2,5,2,13],[3,2,3,14],[4,2,4,8],[4,9,4,12],[4,13,4,14],[9,2,9,4],[9,5,9,8],[9,10,9,14],[5,3,5,8],[5,9,5,12],[5,13,5,14],[6,2,6,8],[6,9,6,12],[6,13,6,14],[7,2,7,8],[7,9,7,12],[7,13,7,14],[8,2,8,8],[8,9,8,14],[10,2,10,4],[10,5,10,8],[10,10,10,14],[11,2,11,4],[11,5,11,8],[11,10,11,14],[20,2,20,14],[13,2,13,4],[13,5,13,14],[14,2,14,4],[14,5,14,14],[15,2,16,4],[15,5,15,8],[15,9,15,10],[15,11,15,14],[16,5,16,8],[16,9,16,10],[16,11,16,14],[17,2,17,4],[17,5,17,14],[18,2,18,4],[18,5,18,14],[21,2,21,9],[22,2,22,14],[23,2,27,5],[23,6,23,9],[24,6,24,9],[25,6,25,9],[26,6,26,9],[27,6,27,9],[28,2,28,14],[29,2,33,5],[29,6,29,9],[30,6,30,9],[31,6,31,9],[32,6,32,9],[33,6,33,9],[34,2,34,14],[35,2,39,5],[35,6,35,9],[36,6,36,9],[37,6,37,9],[38,6,38,9],[39,6,39,9],[40,2,40,14],[41,2,45,5],[41,6,41,9],[42,6,42,9],[43,6,43,9],[44,6,44,9],[45,6,45,9],[54,2,54,14],[55,2,55,14],[57,2,57,6],[57,7,57,9],[57,12,57,13],[48,2,53,4],[48,5,48,9],[48,10,48,14],[49,5,49,13],[50,5,50,13],[51,5,51,13],[52,5,52,13],[53,5,53,13],[21,15,21,18],[21,19,21,22],[71,6,71,8],[71,12,71,13],[72,6,77,9],[72,11,77,13],[59,6,65,9],[59,11,65,13],[68,2,68,14],[69,10,70,10],[70,2,70,6],[70,7,70,9],[70,12,70,13],[58,6,58,8],[46,2,46,14],[47,1,47,14]]}
[null,null,"Les largeurs de colonnes et les hauteurs de lignes sont ajustables a votre convenance"]
[]
[null,null,null,null,null,"BACCALAURÉAT SCIENTIFIQUE\nSCIENCES DE L'INGÉNIEUR\nÉPREUVE DE PROJET INTERDISCIPLINAIRE - SESSION 2016"]
[null,null,{"$f":" (\"Fiche descriptive du \"&MID(CELL(\"nomfichier\",A1),FIND(\"]\",CELL(\"nomfichier\",A1))+1,10))","v":"Fiche descriptive du Sh_modele"}]
[null,null,"Établissement (Nom - adresse) :",null,null,null,null,null,null,"Classe concernée : ",null,null,null,{"$f":"IF('Fiche classe'!H14=0,\"\",'Fiche classe'!H14)","v":"Ts-SI"}]
[null,null,"Lycée:",{"$f":"IF('Fiche classe'!D9:E9=\"\",\"\",'Fiche classe'!D9:E9)","v":"Léonard de Vinci "},null,null,null,null,null,"Effectif classe : ",null,null,null,{"$f":"IF('Fiche classe'!H16=0,\"\",'Fiche classe'!H16)","v":""}]
[null,null,{"$f":"IF('Fiche classe'!C10=\"\",\"\",'Fiche classe'!C10)","v":"2 bis rue Edouard Branly"},null,null,null,null,null,null,"Nombre d'élèves dans le groupe (3 mini - 5 maxi) :",null,null,null,{"$f":"IF(COUNTIF('Fiche classe'!$C$21:$C$55,RIGHT(CELL(\"nomfichier\",A1),LEN(CELL(\"nomfichier\",A1))-FIND(\"]\",CELL(\"nomfichier\",A1))))=0,\"\",(COUNTIF('Fiche classe'!$C$21:$C$55,RIGHT(CELL(\"nomfichier\",A1),LEN(CELL(\"nomfichier\",A1))-FIND(\"]\",CELL(\"nomfichier\",A1))))))","v":""}]
[null,null,{"$f":"IF('Fiche classe'!C11=\"\",\"\",'Fiche classe'!C11)","v":"77011 Melun"},null,null,null,null,null,null,"Groupement :",null,null,null,{"$f":"IF('Fiche classe'!P16=0,\"\",'Fiche classe'!P16)","v":"C"}]
[null,null,"Professeurs S SI",null,null,null,null,null,null,"Professeur associé"]
[null,null,"Nom :",null,null,{"$f":"IF('Fiche classe'!L9=\"\",\"\",'Fiche classe'!L9)","v":"PEUTOT"},null,null,null,"Nom :",{"$f":"IF('Fiche classe'!L11=\"\",\"\",'Fiche classe'!L11)","v":"BOS"}]
[null,null,"Prénom :",null,null,{"$f":"IF('Fiche classe'!L10=\"\",\"\",'Fiche classe'!L10)","v":"Christian"},null,null,null,"Prénom :",{"$f":"IF('Fiche classe'!L12=\"\",\"\",'Fiche classe'!L12)","v":"Jean-Louis"}]
[null,null,"Spécialité :",null,null,{"$f":"IF('Fiche classe'!P9=\"\",\"\",'Fiche classe'!P9)","v":"SII"},null,null,null,"Discipline :",{"$f":"IF('Fiche classe'!P11=\"\",\"\",'Fiche classe'!P11)","v":"Physique"}]
[]
[null,null,"Intitulé du support de projet",null,null,{"$f":"IF(COUNTIF('Fiche classe'!$C$21:$C$55,RIGHT(CELL(\"nomfichier\",A1),LEN(CELL(\"nomfichier\",A1))-FIND(\"]\",CELL(\"nomfichier\",A1))))>0,VLOOKUP(RIGHT(CELL(\"nomfichier\",A1),LEN(CELL(\"nomfichier\",A1))-FIND(\"]\",CELL(\"nomfichier\",A1))),'Fiche classe'!$C$21:$Q$55,4,0),\"\")","v":""}]
[null,null,"Problèmatique :\nIntitulé exact du projet confié au groupe",null,null,{"$f":"IF(COUNTIF('Fiche classe'!$C$21:$C$55,RIGHT(CELL(\"nomfichier\",A1),LEN(CELL(\"nomfichier\",A1))-FIND(\"]\",CELL(\"nomfichier\",A1))))>0,VLOOKUP(RIGHT(CELL(\"nomfichier\",A1),LEN(CELL(\"nomfichier\",A1))-FIND(\"]\",CELL(\"nomfichier\",A1))),'Fiche classe'!$C$21:$Q$55,8,0),\"\")","v":""}]
[null,null,"Contraintes ",null,null,"Économique ",null,null,null,"Technique",null,"Environnementale"]
[]
[null,null,"Nature de la Production élèves attendue"]
[null,null,"Partenariat éventuel"]
[]
[null,null,"REPARTITON DES TACHES PREVISIONNELLES"]
[null,null,"Description des tâches confiées  (cocher le ou les élèves concernés)",null,null,null,null,null,null,null,"ÉLÈVE 1","ÉLÈVE 2","ÉLÈVE 3","ÉLÈVE 4","ÉLÈVE 5","Compétences de Conduite de Projet (Deux max)",null,null,null,"Compétences de Présentation  de Projet (Deux max)"]
[null,null,"Phase 1 : Analyser un problème",null,null,null,null,null,null,null,null,null,null,null,null,"CC n°1","Indicateurs de performance","CC N°2","Indicateurs de performance","CP n°1","Indicateurs de performance","CP N°2","Indicateurs de performance"]
[]
[]
[]
[]
[]
[null,null,"Phase 2 : Imaginer, modéliser des solutions"]
[]
[]
[]
[]
[]
[null,null,"Phase 3 : Choisir, formaliser, réaliser une solution"]
[]
[]
[]
[]
[]
[null,null,"Phase 4 : Evaluer des performances"]
[]
[]
[]
[]
[]
[]
[]
[null,null,"Planning\nprévisionnel\ndu\nprojet\n",null,null,"Etapes du projet",null,null,null,null,"Temps prévisionnel en heure"]
[null,null,null,null,null,"Analyse du problème :"]
[null,null,null,null,null,"Imaginer des solutions :"]
[null,null,null,null,null,"Réalisation de la solution :"]
[null,null,null,null,null,"Évaluation des performances :"]
[null,null,null,null,null,"Total :",null,null,null,null,null,null,null,null,{"$f":"SUM(O50:O53)","v":0}]
[]
[null,null,"Avis du Chef d'établissement"]
[]
[null,null,"Nom - Prénom :",null,null,null,null,null,null,null,null,"Date :"]
[null,null,null,null,null,null,"Remarques - Observations :",null,null,null,null,null,"Signature :"]
[]
[null,null,"Validé"]
[]
[null,null,"Non-Validé (à retravailler)"]
[]
[null,null,"Projet non conforme - annulé"]
[]
[]
[]
[null,null,"Avis de la commission de validation"]
[]
[null,null,"Chef de travaux coordinateur - Nom - Prénom",null,null,null,null,{"$f":"IF('Fiche classe'!L11=\"\",\"\",'Fiche classe'!L15 & \" \" &'Fiche classe'!L16 )","v":"MARRO Fabrice"},null,null,null,"Date :"]
[null,null,null,null,null,null,"Remarques - Observations :",null,null,null,null,null,"Signature :"]
[null,null,"Proposé à la validation"]
[]
[null,null,"À retravailler"]
[]
[null,null,"Non conforme aux exigences"]

{"sheet":"Fiche classe","index":4,"n_rows":20,"n_cols":16,"rows_kept":20,"cut":false,"hidden":false,"merged":[[15,11,15,12],[20,9,20,12],[50,5,50,8],[51,5,51,8],[0,1,0,17],[30,5,30,8],[31,5,31,8],[32,5,32,8],[33,5,33,8],[24,5,24,8],[25,5,25,8],[26,5,26,8],[27,5,27,8],[33,9,33,12],[25,13,25,16],[26,13,26,16],[24,9,24,12],[25,9,25,12],[26,9,26,12],[23,9,23,12],[13,6,14,6],[14,11,14,12],[20,13,20,16],[24,13,24,16],[15,2,15,3],[15,7,15,8],[43,9,43,12],[52,13,52,16],[53,5,53,8],[54,5,54,8],[9,2,9,4],[10,2,10,4],[11,2,11,4],[13,2,13,4],[47,5,47,8],[48,5,48,8],[49,5,49,8],[41,5,41,8],[42,5,42,8],[43,5,43,8],[44,5,44,8],[45,5,45,8],[34,5,34,8],[37,5,37,8],[38,5,38,8],[39,5,39,8],[40,5,40,8],[29,5,29,8],[14,2,14,3],[52,5,52,8],[37,9,37,12],[38,13,38,16],[54,9,54,12],[49,9,49,12],[48,9,48,12],[47,9,47,12],[45,9,45,12],[44,9,44,12],[39,9,39,12],[53,13,53,16],[53,9,53,12],[54,13,54,16],[40,13,40,16],[41,13,41,16],[42,13,42,16],[43,13,43,16],[44,13,44,16],[45,13,45,16],[47,13,47,16],[48,13,48,16],[49,13,49,16],[50,13,50,16],[52,9,52,12],[51,9,51,12],[40,9,40,12],[50,9,50,12],[36,9,36,12],[32,9,32,12],[51,13,51,16],[34,9,34,12],[27,9,27,12],[23,13,23,16],[28,9,28,12],[39,13,39,16],[27,13,27,16],[28,13,28,16],[29,13,29,16],[30,9,30,12],[31,9,31,12],[36,13,36,16],[35,9,35,12],[30,13,30,16],[31,13,31,16],[32,13,32,16],[33,13,33,16],[34,13,34,16],[37,13,37,16],[38,9,38,12],[7,15,7,16],[2,1,2,17],[7,6,7,8],[7,10,7,14],[13,10,13,16],[8,11,8,14],[9,11,9,14],[10,11,10,14],[11,11,11,14],[8,15,9,16],[10,15,11,16],[8,7,8,8],[9,7,9,8],[10,7,10,8],[8,3,8,4],[7,2,7,4],[11,7,11,8],[4,1,4,12],[4,13,4,14],[4,15,4,17],[46,5,46,8],[46,9,46,12],[46,13,46,16],[13,7,14,8],[19,9,19,12],[19,13,19,16],[19,5,19,8],[20,5,20,8],[35,5,35,8],[21,5,21,8],[21,9,21,12],[21,13,21,16],[22,5,22,8],[22,9,22,12],[22,13,22,16],[23,5,23,8],[35,13,35,16],[29,9,29,12],[14,15,14,16],[15,15,15,16],[28,5,28,8],[42,9,42,12],[36,5,36,8],[41,9,41,12]]}
[null,"Les largeurs de colonnes et les hauteurs de lignes sont ajustables a votre convenance"]
[]
[null,"BACCALAURÉAT SCIENTIFIQUE\nSCIENCES DE L'INGÉNIEUR\nÉPREUVE DE PROJET INTERDISCIPLINAIRE - SESSION 2016"]
[]
[null,"Liste des projets de la classe par élève",null,null,null,null,null,null,null,null,null,null,null,"Nb Projets :",null,1]
[]
[]
[null,null,"Établissement (Nom - adresse) :",null,null,null,"Chef de Travaux",null,null,null,"Equipe pédagogique en charge des projets",null,null,null,null,"Discipline"]
[null,null,"Lycée :","Léonard de Vinci ",null,null,"Nom :","MARRO",null,null,"Nom :","PEUTOT",null,null,null,"SII"]
[null,null,"2 bis rue Edouard Branly",null,null,null,"Prénom :","Fabrice",null,null,"Prénom :","Christian"]
[null,null,"77011 Melun",null,null,null,"Téléphone :",160566080,null,null,"Nom :","BOS",null,null,null,"Physique"]
[null,null,null,null,null,null,"Courriel :","fabrice.marro@ac-creteil.fr",null,null,"Prénom :","Jean-Louis"]
[]
[null,null,null,null,null,null,"Classe concernée :","Ts-SI",null,null,"Chef de Travaux coordinateur groupement"]
[null,null,"Courriel établissement  :",null,"ce.0770934x@ac-creteil.fr",null,null,null,null,null,"Nom :","MARRO",null,"(",160566084,"Groupement"]
[null,null,"Téléphone :",null,160566060,null,"Effectif :",null,null,null,"Prénom :","Fabrice",null,".","fabrice.marro@ac-creteil.fr","C"]
[]
[]
[]
[null,null,"Projet\nN°","Nom","Prénom","Intitulé du support de projet",null,null,null,"Problèmatique - Intitulé exact du projet confié au groupe",null,null,null,"Répartition des taches"]

{"sheet":"Fiche récap des projets Ets","index":5,"n_rows":34,"n_cols":17,"rows_kept":34,"cut":false,"hidden":true,"merged":[[9,3,9,7],[10,3,10,7],[0,1,0,17],[13,4,14,5],[13,7,13,8],[8,10,8,11],[9,10,9,11],[13,15,13,16],[14,15,14,16],[14,7,14,8],[14,10,14,11],[13,10,13,11],[10,9,11,9],[10,10,11,11],[8,13,9,13],[10,13,11,13],[8,3,8,7],[2,1,2,17],[4,1,4,17],[7,9,7,11],[7,13,7,16],[7,2,7,7],[8,15,8,16],[9,15,9,16],[10,15,10,16],[11,15,11,16],[35,2,35,3],[28,2,28,16],[30,6,30,9],[33,5,35,10],[33,13,35,15],[17,2,17,3],[17,4,17,9],[17,12,17,15],[18,2,18,3],[24,2,24,3],[25,2,25,3],[26,2,26,3],[18,4,18,9],[18,12,18,15],[19,2,19,3],[20,2,20,3],[21,2,21,3],[19,12,19,15],[20,12,20,15],[21,12,21,15],[27,2,27,3],[19,4,19,9],[20,4,20,9],[21,4,21,9],[22,4,22,9],[23,4,23,9],[24,4,24,9],[25,4,25,9],[26,4,26,9],[27,4,27,9],[22,2,22,3],[23,2,23,3],[27,12,27,15],[22,12,22,15],[23,12,23,15],[24,12,24,15],[25,12,25,15],[26,12,26,15]]}
[null,"Les largeurs de colonnes et les hauteurs de lignes sont ajustables a votre convenance"]
[]
[null,"BACCALAURÉAT SCIENTIFIQUE\nSCIENCES DE L'INGÉNIEUR\nÉPREUVE DE PROJET INTERDISCIPLINAIRE - SESSION 2016"]
[]
[null,"Récapitulatif des projets présentés par l'établissement"]
[]
[]
[null,null,"Établissement (Nom - adresse) :",null,null,null,null,null,null,"Chef de Travaux coordinateur",null,null,null,"Equipe pédagogique en charge des projets"]
[null,null,"Lycée :",{"$f":"IF('Fiche classe'!D9=0,\"\",'Fiche classe'!D9)","v":"Léonard de Vinci "},null,null,null,null,null,"Nom :",{"$f":"IF('Fiche classe'!L15=0,\"\",'Fiche classe'!L15)","v":"MARRO"},null,null,"Professeur SII","Nom :",{"$f":"IF('Fiche classe'!L9=0,\"\",'Fiche classe'!L9)","v":"PEUTOT"}]
[null,null,null,{"$f":"IF('Fiche classe'!C10=0,\"\",'Fiche classe'!C10)","v":"2 bis rue Edouard Branly"},null,null,null,null,null,"Prénom :",{"$f":"IF('Fiche classe'!L16=0,\"\",'Fiche classe'!L16)","v":"Fabrice"},null,null,null,"Prénom :",{"$f":"IF('Fiche classe'!L10=0,\"\",'Fiche classe'!L10)","v":"Christian"}]
[null,null,null,{"$f":"IF('Fiche classe'!C11=0,\"\",'Fiche classe'!C11)","v":"77011 Melun"},null,null,null,null,null,"Groupement :",{"$f":"IF('Fiche classe'!P16=0,\"\",'Fiche classe'!P16)","v":"C"},null,null,"Professeur associé","Nom :",{"$f":"IF('Fiche classe'!L11=0,\"\",'Fiche classe'!L11)","v":"BOS"}]
[null,null,null,null,null,null,null,null,null,null,null,null,null,null,"Prénom :",{"$f":"IF('Fiche classe'!L12=0,\"\",'Fiche classe'!L12)","v":"Jean-Louis"}]
[]
[null,null,"Courriel établissement :",null,"Chef de Travaux",null,"Nom :",{"$f":"IF('Fiche classe'!H9=0,\"\",'Fiche classe'!H9)","v":"MARRO"},null,"Téléphone :",{"$f":"IF('Fiche classe'!H11=0,\"\",'Fiche classe'!H11)","v":160566080},null,null,"Classe concernée :",{"$f":"IF('Fiche classe'!H14=0,\"\",'Fiche classe'!H14)","v":"Ts-SI"},"Nombre de Projets :"]
[null,null,{"$f":"IF('Fiche classe'!E15 = 0, \"\",'Fiche classe'!E15)","v":"ce.0770934x@ac-creteil.fr"},null,null,null,"Prénom :",{"$f":"IF('Fiche classe'!H10=0,\"\",'Fiche classe'!H10)","v":"Fabrice"},null,"Courriel :",{"$f":"IF('Fiche classe'!H12=0,\"\",'Fiche classe'!H12)","v":"fabrice.marro@ac-creteil.fr"},null,null,"Effectif classe :",{"$f":"IF('Fiche classe'!H16=0,\"\",'Fiche classe'!H16)","v":""},{"$f":"10-COUNTIF(C19:C28,\"\")","v":0}]
[]
[]
[null,null,"Intitulé support de projet",null,"Intitulé exact du projet confié au groupe",null,null,null,null,null,"Nb d’élèves","Projet \npré-validé","Projet pré-validé avec réserve\n(Indiquer les observations)",null,null,null,"Projet Refusé"]
[null,null,{"$f":"IF(COUNTIF('Fiche classe'!$C$21:$C$55,\"Projet1\")>0,VLOOKUP(\"Projet1\",'Fiche classe'!$C$21:$Q$55,4,0),\"\")","v":""},null,{"$f":"IF(COUNTIF('Fiche classe'!$C$21:$C$55,\"Projet1\")>0,VLOOKUP(\"Projet1\",'Fiche classe'!$C$21:$Q$55,8,0),\"\")","v":""},null,null,null,null,null,{"$f":"IF(COUNTIF('Fiche classe'!$C$21:$C$55,\"Projet1\")=0,\"\",(COUNTIF('Fiche classe'!$C$21:$C$55,\"Projet1\")))","v":""}]
[null,null,{"$f":"IF(COUNTIF('Fiche classe'!$C$21:$C$55,\"Projet2\")>0,VLOOKUP(\"Projet2\",'Fiche classe'!$C$21:$Q$55,4,0),\"\")","v":""},null,{"$f":"IF(COUNTIF('Fiche classe'!$C$21:$C$55,\"Projet2\")>0,VLOOKUP(\"Projet2\",'Fiche classe'!$C$21:$Q$55,8,0),\"\")","v":""},null,null,null,null,null,{"$f":"IF(COUNTIF('Fiche classe'!$C$21:$C$55,\"Projet2\")=0,\"\",(COUNTIF('Fiche classe'!$C$21:$C$55,\"Projet2\")))","v":""}]
[null,null,{"$f":"IF(COUNTIF('Fiche classe'!$C$21:$C$55,\"Projet3\")>0,VLOOKUP(\"Projet3\",'Fiche classe'!$C$21:$Q$55,4,0),\"\")","v":""},null,{"$f":"IF(COUNTIF('Fiche classe'!$C$21:$C$55,\"Projet3\")>0,VLOOKUP(\"Projet3\",'Fiche classe'!$C$21:$Q$55,8,0),\"\")","v":""},null,null,null,null,null,{"$f":"IF(COUNTIF('Fiche classe'!$C$21:$C$55,\"Projet3\")=0,\"\",(COUNTIF('Fiche classe'!$C$21:$C$55,\"Projet3\")))","v":""}]
[null,null,{"$f":"IF(COUNTIF('Fiche classe'!$C$21:$C$55,\"Projet4\")>0,VLOOKUP(\"Projet4\",'Fiche classe'!$C$21:$Q$55,4,0),\"\")","v":""},null,{"$f":"IF(COUNTIF('Fiche classe'!$C$21:$C$55,\"Projet4\")>0,VLOOKUP(\"Projet4\",'Fiche classe'!$C$21:$Q$55,8,0),\"\")","v":""},null,null,null,null,null,{"$f":"IF(COUNTIF('Fiche classe'!$C$21:$C$55,\"Projet4\")=0,\"\",(COUNTIF('Fiche classe'!$C$21:$C$55,\"Projet4\")))","v":""}]
[null,null,{"$f":"IF(COUNTIF('Fiche classe'!$C$21:$C$55,\"Projet5\")>0,VLOOKUP(\"Projet5\",'Fiche classe'!$C$21:$Q$55,4,0),\"\")","v":""},null,{"$f":"IF(COUNTIF('Fiche classe'!$C$21:$C$55,\"Projet5\")>0,VLOOKUP(\"Projet5\",'Fiche classe'!$C$21:$Q$55,8,0),\"\")","v":""},null,null,null,null,null,{"$f":"IF(COUNTIF('Fiche classe'!$C$21:$C$55,\"Projet5\")=0,\"\",(COUNTIF('Fiche classe'!$C$21:$C$55,\"Projet5\")))","v":""}]
[null,null,{"$f":"IF(COUNTIF('Fiche classe'!$C$21:$C$55,\"Projet6\")>0,VLOOKUP(\"Projet6\",'Fiche classe'!$C$21:$Q$55,4,0),\"\")","v":""},null,{"$f":"IF(COUNTIF('Fiche classe'!$C$21:$C$55,\"Projet6\")>0,VLOOKUP(\"Projet6\",'Fiche classe'!$C$21:$Q$55,8,0),\"\")","v":""},null,null,null,null,null,{"$f":"IF(COUNTIF('Fiche classe'!$C$21:$C$55,\"Projet6\")=0,\"\",(COUNTIF('Fiche classe'!$C$21:$C$55,\"Projet6\")))","v":""}]
[null,null,{"$f":"IF(COUNTIF('Fiche classe'!$C$21:$C$55,\"Projet7\")>0,VLOOKUP(\"Projet7\",'Fiche classe'!$C$21:$Q$55,4,0),\"\")","v":""},null,{"$f":"IF(COUNTIF('Fiche classe'!$C$21:$C$55,\"Projet7\")>0,VLOOKUP(\"Projet7\",'Fiche classe'!$C$21:$Q$55,8,0),\"\")","v":""},null,null,null,null,null,{"$f":"IF(COUNTIF('Fiche classe'!$C$21:$C$55,\"Projet7\")=0,\"\",(COUNTIF('Fiche classe'!$C$21:$C$55,\"Projet7\")))","v":""}]
[null,null,{"$f":"IF(COUNTIF('Fiche classe'!$C$21:$C$55,\"Projet8\")>0,VLOOKUP(\"Projet8\",'Fiche classe'!$C$21:$Q$55,4,0),\"\")","v":""},null,{"$f":"IF(COUNTIF('Fiche classe'!$C$21:$C$55,\"Projet8\")>0,VLOOKUP(\"Projet8\",'Fiche classe'!$C$21:$Q$55,8,0),\"\")","v":""},null,null,null,null,null,{"$f":"IF(COUNTIF('Fiche classe'!$C$21:$C$55,\"Projet8\")=0,\"\",(COUNTIF('Fiche classe'!$C$21:$C$55,\"Projet8\")))","v":""}]
[null,null,{"$f":"IF(COUNTIF('Fiche classe'!$C$21:$C$55,\"Projet9\")>0,VLOOKUP(\"Projet9\",'Fiche classe'!$C$21:$Q$55,4,0),\"\")","v":""},null,{"$f":"IF(COUNTIF('Fiche classe'!$C$21:$C$55,\"Projet9\")>0,VLOOKUP(\"Projet9\",'Fiche classe'!$C$21:$Q$55,8,0),\"\")","v":""},null,null,null,null,null,{"$f":"IF(COUNTIF('Fiche classe'!$C$21:$C$55,\"Projet9\")=0,\"\",(COUNTIF('Fiche classe'!$C$21:$C$55,\"Projet9\")))","v":""}]
[null,null,{"$f":"IF(COUNTIF('Fiche classe'!$C$21:$C$55,\"Projet10\")>0,VLOOKUP(\"Projet10\",'Fiche classe'!$C$21:$Q$55,4,0),\"\")","v":""},null,{"$f":"IF(COUNTIF('Fiche classe'!$C$21:$C$55,\"Projet10\")>0,VLOOKUP(\"Projet10\",'Fiche classe'!$C$21:$Q$55,8,0),\"\")","v":""},null,null,null,null,null,{"$f":"IF(COUNTIF('Fiche classe'!$C$21:$C$55,\"Projet10\")=0,\"\",(COUNTIF('Fiche classe'!$C$21:$C$55,\"Projet10\")))","v":""}]
[null,null,"Avis l'IA-IPR"]
[]
[null,null,null,null,"Nom - Prénom :",null,"VAYLET Christian",null,null,null,null,"date :"]
[]
[]
[null,null,null,null,"Remarques - Observations :",null,null,null,null,null,null,"Signature :"]

{"sheet":"Bilan Compétences","index":6,"n_rows":19,"n_cols":16,"rows_kept":19,"cut":false,"hidden":true,"merged":[[0,1,0,17],[2,1,2,17],[4,1,4,17],[7,2,7,7],[7,9,7,11],[7,13,7,16],[8,3,8,7],[8,10,8,11],[8,14,8,16],[9,10,9,11],[9,14,9,16],[9,3,9,7],[13,15,13,16],[14,7,14,8],[14,10,14,11],[14,15,14,16],[10,14,10,16],[11,4,11,7],[11,14,11,16],[17,4,17,6],[10,10,11,11],[10,9,11,9],[10,3,10,7],[13,4,14,5],[13,7,13,8],[13,10,13,11],[11,2,11,3],[17,7,17,9]]}
[null,"Les largeurs de colonnes et les hauteurs de lignes sont ajustables à votre convenance"]
[]
[null,"BACCALAURÉAT SCIENTIFIQUE\nSCIENCES DE L'INGÉNIEUR\nÉPREUVE DE PROJET INTERDISCIPLINAIRE - SESSION 2016"]
[]
[null,"BILAN DES COMPÉTENCES"]
[]
[]
[null,null,"Établissement (Nom - adresse) :",null,null,null,null,null,null,"Chef de Travaux coordinateur",null,null,null,"Équipe pédagogique en charge des projets"]
[null,null,"Lycée :",{"$f":"IF('Fiche classe'!D9=\"\",\"\",'Fiche classe'!D9)","v":"Léonard de Vinci "},null,null,null,null,null,"Nom",{"$f":"IF('Fiche classe'!L15=0,\"\",'Fiche classe'!L15)","v":"MARRO"},null,null,"Nom",{"$f":"IF('Fiche classe'!L9=0,\"\",'Fiche classe'!L9)","v":"PEUTOT"}]
[null,null,null,{"$f":"IF('Fiche classe'!C10=0,\"\",'Fiche classe'!C10)","v":"2 bis rue Edouard Branly"},null,null,null,null,null,"Prénom",{"$f":"IF('Fiche classe'!L16=0,\"\",'Fiche classe'!L16)","v":"Fabrice"},null,null,"Prénom",{"$f":"IF('Fiche classe'!L10=0,\"\",'Fiche classe'!L10)","v":"Christian"}]
[null,null,null,{"$f":"IF('Fiche classe'!C11=0,\"\",'Fiche classe'!C11)","v":"77011 Melun"},null,null,null,null,null,"Groupement",{"$f":"IF('Fiche classe'!P16=0,\"\",'Fiche classe'!P16)","v":"C"},null,null,"Nom",{"$f":"IF('Fiche classe'!L11=0,\"\",'Fiche classe'!L11)","v":"BOS"}]
[null,null,null,null,null,null,null,null,null,null,null,null,null,"Prénom",{"$f":"IF('Fiche classe'!L12=0,\"\",'Fiche classe'!L12)","v":"Jean-Louis"}]
[]
[null,null,"Courriel établissement :",null,"Chef de Travaux",null,"Nom :",{"$f":"IF('Fiche classe'!H9=0,\"\",'Fiche classe'!H9)","v":"MARRO"},null,"Téléphone :",{"$f":"IF('Fiche classe'!H11=0,\"\",'Fiche classe'!H11)","v":160566080},null,null,"Classe concernée",{"$f":"IF('Fiche classe'!H14=0,\"\",'Fiche classe'!H14)","v":"Ts-SI"},"nbre de Projet"]
[null,null,{"$f":"IF('Fiche classe'!E15 = 0, \"\",'Fiche classe'!E15)","v":"ce.0770934x@ac-creteil.fr"},null,null,null,"Prénom :",{"$f":"IF('Fiche classe'!H10=0,\"\",'Fiche classe'!H10)","v":"Fabrice"},null,"courriel:",{"$f":"IF('Fiche classe'!H12=0,\"\",'Fiche classe'!H12)","v":"fabrice.marro@ac-creteil.fr"},null,null,"effectif classe",{"$f":"IF('Fiche classe'!H16=0,\"\",'Fiche classe'!H16)","v":""},{"$f":"COUNTA(C:C)-5","v":0}]
[]
[]
[null,null,null,null,"Revue de conduite",null,null,"Revue de Présentation"]
[null,null,"Projet ","élève","B","C","D","A","C","D"]

{"sheet":"Projet1","index":7,"n_rows":77,"n_cols":23,"rows_kept":77,"cut":false,"hidden":false,"merged":[[71,6,71,8],[71,12,71,13],[72,6,77,9],[72,11,77,13],[59,6,65,9],[59,11,65,13],[68,2,68,14],[69,10,70,10],[70,2,70,6],[70,7,70,9],[70,12,70,13],[58,6,58,8],[46,2,46,14],[47,1,47,14],[48,2,53,4],[48,5,48,9],[48,10,48,14],[49,5,49,13],[50,5,50,13],[51,5,51,13],[52,5,52,13],[53,5,53,13],[54,2,54,14],[55,2,55,14],[57,2,57,6],[57,7,57,9],[57,12,57,13],[40,2,40,14],[41,2,45,5],[41,6,41,9],[42,6,42,9],[43,6,43,9],[44,6,44,9],[45,6,45,9],[34,2,34,14],[35,2,39,5],[35,6,35,9],[36,6,36,9],[37,6,37,9],[38,6,38,9],[39,6,39,9],[28,2,28,14],[29,2,33,5],[29,6,29,9],[30,6,30,9],[31,6,31,9],[32,6,32,9],[33,6,33,9],[21,2,21,9],[21,15,21,18],[21,19,21,22],[22,2,22,14],[23,2,27,5],[23,6,23,9],[24,6,24,9],[25,6,25,9],[26,6,26,9],[27,6,27,9],[20,2,20,14],[13,2,13,4],[13,5,13,14],[14,2,14,4],[14,5,14,14],[15,2,16,4],[15,5,15,8],[15,9,15,10],[15,11,15,14],[16,5,16,8],[16,9,16,10],[16,11,16,14],[17,2,17,4],[17,5,17,14],[18,2,18,4],[18,5,18,14],[10,2,10,4],[10,5,10,8],[10,10,10,14],[11,2,11,4],[11,5,11,8],[11,10,11,14],[9,2,9,4],[9,5,9,8],[9,10,9,14],[5,3,5,8],[5,9,5,12],[5,13,5,14],[6,2,6,8],[6,9,6,12],[6,13,6,14],[7,2,7,8],[7,9,7,12],[7,13,7,14],[8,2,8,8],[8,9,8,14],[0,2,0,14],[2,5,2,13],[3,2,3,14],[4,2,4,8],[4,9,4,12],[4,13,4,14]]}
[null,null,"Les largeurs de colonnes et les hauteurs de lignes sont ajustables a votre convenance"]
[]
[null,null,null,null,null,"BACCALAURÉAT SCIENTIFIQUE\nSCIENCES DE L'INGÉNIEUR\nÉPREUVE DE PROJET INTERDISCIPLINAIRE - SESSION 2016"]
[null,null,{"$f":" (\"Fiche descriptive du \"&MID(CELL(\"nomfichier\",A1),FIND(\"]\",CELL(\"nomfichier\",A1))+1,10))","v":"Fiche descriptive du Projet1"}]
[null,null,"Établissement (Nom - adresse) :",null,null,null,null,null,null,"Classe concernée : ",null,null,null,{"$f":"IF('Fiche classe'!H14=0,\"\",'Fiche classe'!H14)","v":"Ts-SI"}]
[null,null,"Lycée:",{"$f":"IF('Fiche classe'!D9:E9=\"\",\"\",'Fiche classe'!D9:E9)","v":"Léonard de Vinci "},null,null,null,null,null,"Effectif classe : ",null,null,null,{"$f":"IF('Fiche classe'!H16=0,\"\",'Fiche classe'!H16)","v":""}]
[null,null,{"$f":"IF('Fiche classe'!C10=\"\",\"\",'Fiche classe'!C10)","v":"2 bis rue Edouard Branly"},null,null,null,null,null,null,"Nombre d'élèves dans le groupe (3 mini - 5 maxi) :",null,null,null,{"$f":"IF(COUNTIF('Fiche classe'!$C$21:$C$55,RIGHT(CELL(\"nomfichier\",A1),LEN(CELL(\"nomfichier\",A1))-FIND(\"]\",CELL(\"nomfichier\",A1))))=0,\"\",(COUNTIF('Fiche classe'!$C$21:$C$55,RIGHT(CELL(\"nomfichier\",A1),LEN(CELL(\"nomfichier\",A1))-FIND(\"]\",CELL(\"nomfichier\",A1))))))","v":""}]
[null,null,{"$f":"IF('Fiche classe'!C11=\"\",\"\",'Fiche classe'!C11)","v":"77011 Melun"},null,null,null,null,null,null,"Groupement :",null,null,null,{"$f":"IF('Fiche classe'!P16=0,\"\",'Fiche classe'!P16)","v":"C"}]
[null,null,"Professeurs S SI",null,null,null,null,null,null,"Professeur associé"]
[null,null,"Nom :",null,null,{"$f":"IF('Fiche classe'!L9=\"\",\"\",'Fiche classe'!L9)","v":"PEUTOT"},null,null,null,"Nom :",{"$f":"IF('Fiche classe'!L11=\"\",\"\",'Fiche classe'!L11)","v":"BOS"}]
[null,null,"Prénom :",null,null,{"$f":"IF('Fiche classe'!L10=\"\",\"\",'Fiche classe'!L10)","v":"Christian"},null,null,null,"Prénom :",{"$f":"IF('Fiche classe'!L12=\"\",\"\",'Fiche classe'!L12)","v":"Jean-Louis"}]
[null,null,"Spécialité :",null,null,{"$f":"IF('Fiche classe'!P9=\"\",\"\",'Fiche classe'!P9)","v":"SII"},null,null,null,"Discipline :",{"$f":"IF('Fiche classe'!P11=\"\",\"\",'Fiche classe'!P11)","v":"Physique"}]
[]
[null,null,"Intitulé du support de projet",null,null,{"$f":"IF(COUNTIF('Fiche classe'!$C$21:$C$55,RIGHT(CELL(\"nomfichier\",A1),LEN(CELL(\"nomfichier\",A1))-FIND(\"]\",CELL(\"nomfichier\",A1))))>0,VLOOKUP(RIGHT(CELL(\"nomfichier\",A1),LEN(CELL(\"nomfichier\",A1))-FIND(\"]\",CELL(\"nomfichier\",A1))),'Fiche classe'!$C$21:$Q$55,4,0),\"\")","v":""}]
[null,null,"Problèmatique :\nIntitulé exact du projet confié au groupe",null,null,{"$f":"IF(COUNTIF('Fiche classe'!$C$21:$C$55,RIGHT(CELL(\"nomfichier\",A1),LEN(CELL(\"nomfichier\",A1))-FIND(\"]\",CELL(\"nomfichier\",A1))))>0,VLOOKUP(RIGHT(CELL(\"nomfichier\",A1),LEN(CELL(\"nomfichier\",A1))-FIND(\"]\",CELL(\"nomfichier\",A1))),'Fiche classe'!$C$21:$Q$55,8,0),\"\")","v":""}]
[null,null,"Contraintes ",null,null,"Économique ",null,null,null,"Technique",null,"Environnementale"]
[]
[null,null,"Nature de la Production élèves attendue"]
[null,null,"Partenariat éventuel"]
[]
[null,null,"REPARTITON DES TACHES PREVISIONNELLES"]
[null,null,"Description des tâches confiées  (cocher le ou les élèves concernés)",null,null,null,null,null,null,null,"ÉLÈVE 1","ÉLÈVE 2","ÉLÈVE 3","ÉLÈVE 4","ÉLÈVE 5","Compétences de Conduite de Projet (Deux max)",null,null,null,"Compétences de Présentation  de Projet (Deux max)"]
[null,null,"Phase 1 : Analyser un problème",null,null,null,null,null,null,null,null,null,null,null,null,"CC n°1","Indicateurs de performance","CC N°2","Indicateurs de performance","CP n°1","Indicateurs de performance","CP N°2","Indicateurs de performance"]
[null,null,null,null,null,null,null,null,null,null,null,null,null,null,null,"C_C1","C_C1.3 Les choix et réglages des capteurs et appareils de mesure sont correctement explicités"]
[]
[]
[]
[]
[null,null,"Phase 2 : Imaginer, modéliser des solutions"]
[]
[]
[]
[]
[]
[null,null,"Phase 3 : Choisir, formaliser, réaliser une solution"]
[]
[]
[]
[]
[]
[null,null,"Phase 4 : Evaluer des performances"]
[]
[]
[]
[]
[]
[]
[]
[null,null,"Planning\nprévisionnel\ndu\nprojet\n",null,null,"Etapes du projet",null,null,null,null,"Temps prévisionnel en heure"]
[null,null,null,null,null,"Analyse du problème :"]
[null,null,null,null,null,"Imaginer des solutions :"]
[null,null,null,null,null,"Réalisation de la solution :"]
[null,null,null,null,null,"Évaluation des performances :"]
[null,null,null,null,null,"Total :",null,null,null,null,null,null,null,null,{"$f":"SUM(O50:O53)","v":0}]
[]
[null,null,"Avis du Chef d'établissement"]
[]
[null,null,"Nom - Prénom :",null,null,null,null,null,null,null,null,"Date :"]
[null,null,null,null,null,null,"Remarques - Observations :",null,null,null,null,null,"Signature :"]
[]
[null,null,"Validé"]
[]
[null,null,"Non-Validé (à retravailler)"]
[]
[null,null,"Projet non conforme - annulé"]
[]
[]
[]
[null,null,"Avis de la commission de validation"]
[]
[null,null,"Chef de travaux coordinateur - Nom - Prénom",null,null,null,null,{"$f":"IF('Fiche classe'!L11=\"\",\"\",'Fiche classe'!L15 & \" \" &'Fiche classe'!L16 )","v":"MARRO Fabrice"},null,null,null,"Date :"]
[null,null,null,null,null,null,"Remarques - Observations :",null,null,null,null,null,"Signature :"]
[null,null,"Proposé à la validation"]
[]
[null,null,"À retravailler"]
[]
[null,null,"Non conforme aux exigences"]

{"sheet":"Projet2","index":8,"n_rows":77,"n_cols":23,"rows_kept":77,"cut":false,"hidden":true,"merged":[[71,6,71,8],[71,12,71,13],[72,6,77,9],[72,11,77,13],[59,6,65,9],[59,11,65,13],[68,2,68,14],[69,10,70,10],[70,2,70,6],[70,7,70,9],[70,12,70,13],[58,6,58,8],[46,2,46,14],[47,1,47,14],[48,2,53,4],[48,5,48,9],[48,10,48,14],[49,5,49,13],[50,5,50,13],[51,5,51,13],[52,5,52,13],[53,5,53,13],[54,2,54,14],[55,2,55,14],[57,2,57,6],[57,7,57,9],[57,12,57,13],[40,2,40,14],[41,2,45,5],[41,6,41,9],[42,6,42,9],[43,6,43,9],[44,6,44,9],[45,6,45,9],[34,2,34,14],[35,2,39,5],[35,6,35,9],[36,6,36,9],[37,6,37,9],[38,6,38,9],[39,6,39,9],[28,2,28,14],[29,2,33,5],[29,6,29,9],[30,6,30,9],[31,6,31,9],[32,6,32,9],[33,6,33,9],[21,2,21,9],[21,15,21,18],[21,19,21,22],[22,2,22,14],[23,2,27,5],[23,6,23,9],[24,6,24,9],[25,6,25,9],[26,6,26,9],[27,6,27,9],[20,2,20,14],[13,2,13,4],[13,5,13,14],[14,2,14,4],[14,5,14,14],[15,2,16,4],[15,5,15,8],[15,9,15,10],[15,11,15,14],[16,5,16,8],[16,9,16,10],[16,11,16,14],[17,2,17,4],[17,5,17,14],[18,2,18,4],[18,5,18,14],[10,2,10,4],[10,5,10,8],[10,10,10,14],[11,2,11,4],[11,5,11,8],[11,10,11,14],[9,2,9,4],[9,5,9,8],[9,10,9,14],[5,3,5,8],[5,9,5,12],[5,13,5,14],[6,2,6,8],[6,9,6,12],[6,13,6,14],[7,2,7,8],[7,9,7,12],[7,13,7,14],[8,2,8,8],[8,9,8,14],[0,2,0,14],[2,5,2,13],[3,2,3,14],[4,2,4,8],[4,9,4,12],[4,13,4,14]]}
[null,null,"Les largeurs de colonnes et les hauteurs de lignes sont ajustables a votre convenance"]
[]
[null,null,null,null,null,"BACCALAURÉAT SCIENTIFIQUE\nSCIENCES DE L'INGÉNIEUR\nÉPREUVE DE PROJET INTERDISCIPLINAIRE - SESSION 2016"]
[null,null,{"$f":" (\"Fiche descriptive du \"&MID(CELL(\"nomfichier\",A1),FIND(\"]\",CELL(\"nomfichier\",A1))+1,10))","v":"Fiche descriptive du Projet2"}]
[null,null,"Établissement (Nom - adresse) :",null,null,null,null,null,null,"Classe concernée : ",null,null,null,{"$f":"IF('Fiche classe'!H14=0,\"\",'Fiche classe'!H14)","v":"Ts-SI"}]
[null,null,"Lycée:",{"$f":"IF('Fiche classe'!D9:E9=\"\",\"\",'Fiche classe'!D9:E9)","v":"Léonard de Vinci "},null,null,null,null,null,"Effectif classe : ",null,null,null,{"$f":"IF('Fiche classe'!H16=0,\"\",'Fiche classe'!H16)","v":""}]
[null,null,{"$f":"IF('Fiche classe'!C10=\"\",\"\",'Fiche classe'!C10)","v":"2 bis rue Edouard Branly"},null,null,null,null,null,null,"Nombre d'élèves dans le groupe (3 mini - 5 maxi) :",null,null,null,{"$f":"IF(COUNTIF('Fiche classe'!$C$21:$C$55,RIGHT(CELL(\"nomfichier\",A1),LEN(CELL(\"nomfichier\",A1))-FIND(\"]\",CELL(\"nomfichier\",A1))))=0,\"\",(COUNTIF('Fiche classe'!$C$21:$C$55,RIGHT(CELL(\"nomfichier\",A1),LEN(CELL(\"nomfichier\",A1))-FIND(\"]\",CELL(\"nomfichier\",A1))))))","v":""}]
[null,null,{"$f":"IF('Fiche classe'!C11=\"\",\"\",'Fiche classe'!C11)","v":"77011 Melun"},null,null,null,null,null,null,"Groupement :",null,null,null,{"$f":"IF('Fiche classe'!P16=0,\"\",'Fiche classe'!P16)","v":"C"}]
[null,null,"Professeurs S SI",null,null,null,null,null,null,"Professeur associé"]
[null,null,"Nom :",null,null,{"$f":"IF('Fiche classe'!L9=\"\",\"\",'Fiche classe'!L9)","v":"PEUTOT"},null,null,null,"Nom :",{"$f":"IF('Fiche classe'!L11=\"\",\"\",'Fiche classe'!L11)","v":"BOS"}]
[null,null,"Prénom :",null,null,{"$f":"IF('Fiche classe'!L10=\"\",\"\",'Fiche classe'!L10)","v":"Christian"},null,null,null,"Prénom :",{"$f":"IF('Fiche classe'!L12=\"\",\"\",'Fiche classe'!L12)","v":"Jean-Louis"}]
[null,null,"Spécialité :",null,null,{"$f":"IF('Fiche classe'!P9=\"\",\"\",'Fiche classe'!P9)","v":"SII"},null,null,null,"Discipline :",{"$f":"IF('Fiche classe'!P11=\"\",\"\",'Fiche classe'!P11)","v":"Physique"}]
[]
[null,null,"Intitulé du support de projet",null,null,{"$f":"IF(COUNTIF('Fiche classe'!$C$21:$C$55,RIGHT(CELL(\"nomfichier\",A1),LEN(CELL(\"nomfichier\",A1))-FIND(\"]\",CELL(\"nomfichier\",A1))))>0,VLOOKUP(RIGHT(CELL(\"nomfichier\",A1),LEN(CELL(\"nomfichier\",A1))-FIND(\"]\",CELL(\"nomfichier\",A1))),'Fiche classe'!$C$21:$Q$55,4,0),\"\")","v":""}]
[null,null,"Problèmatique :\nIntitulé exact du projet confié au groupe",null,null,{"$f":"IF(COUNTIF('Fiche classe'!$C$21:$C$55,RIGHT(CELL(\"nomfichier\",A1),LEN(CELL(\"nomfichier\",A1))-FIND(\"]\",CELL(\"nomfichier\",A1))))>0,VLOOKUP(RIGHT(CELL(\"nomfichier\",A1),LEN(CELL(\"nomfichier\",A1))-FIND(\"]\",CELL(\"nomfichier\",A1))),'Fiche classe'!$C$21:$Q$55,8,0),\"\")","v":""}]
[null,null,"Contraintes ",null,null,"Économique ",null,null,null,"Technique",null,"Environnementale"]
[]
[null,null,"Nature de la Production élèves attendue"]
[null,null,"Partenariat éventuel"]
[]
[null,null,"REPARTITON DES TACHES PREVISIONNELLES"]
[null,null,"Description des tâches confiées  (cocher le ou les élèves concernés)",null,null,null,null,null,null,null,"ÉLÈVE 1","ÉLÈVE 2","ÉLÈVE 3","ÉLÈVE 4","ÉLÈVE 5","Compétences de Conduite de Projet (Deux max)",null,null,null,"Compétences de Présentation  de Projet (Deux max)"]
[null,null,"Phase 1 : Analyser un problème",null,null,null,null,null,null,null,null,null,null,null,null,"CC n°1","Indicateurs de performance","CC N°2","Indicateurs de performance","CP n°1","Indicateurs de performance","CP N°2","Indicateurs de performance"]
[]
[]
[]
[]
[]
[null,null,"Phase 2 : Imaginer, modéliser des solutions"]
[]
[]
[]
[]
[]
[null,null,"Phase 3 : Choisir, formaliser, réaliser une solution"]
[]
[]
[]
[]
[]
[null,null,"Phase 4 : Evaluer des performances"]
[]
[]
[]
[]
[]
[]
[]
[null,null,"Planning\nprévisionnel\ndu\nprojet\n",null,null,"Etapes du projet",null,null,null,null,"Temps prévisionnel en heure"]
[null,null,null,null,null,"Analyse du problème :"]
[null,null,null,null,null,"Imaginer des solutions :"]
[null,null,null,null,null,"Réalisation de la solution :"]
[null,null,null,null,null,"Évaluation des performances :"]
[null,null,null,null,null,"Total :",null,null,null,null,null,null,null,null,{"$f":"SUM(O50:O53)","v":0}]
[]
[null,null,"Avis du Chef d'établissement"]
[]
[null,null,"Nom - Prénom :",null,null,null,null,null,null,null,null,"Date :"]
[null,null,null,null,null,null,"Remarques - Observations :",null,null,null,null,null,"Signature :"]
[]
[null,null,"Validé"]
[]
[null,null,"Non-Validé (à retravailler)"]
[]
[null,null,"Projet non conforme - annulé"]
[]
[]
[]
[null,null,"Avis de la commission de validation"]
[]
[null,null,"Chef de travaux coordinateur - Nom - Prénom",null,null,null,null,{"$f":"IF('Fiche classe'!L11=\"\",\"\",'Fiche classe'!L15 & \" \" &'Fiche classe'!L16 )","v":"MARRO Fabrice"},null,null,null,"Date :"]
[null,null,null,null,null,null,"Remarques - Observations :",null,null,null,null,null,"Signature :"]
[null,null,"Proposé à la validation"]
[]
[null,null,"À retravailler"]
[]
[null,null,"Non conforme aux exigences"]

{"sheet":"Projet3","index":9,"n_rows":77,"n_cols":23,"rows_kept":77,"cut":false,"hidden":true,"merged":[[71,6,71,8],[71,12,71,13],[72,6,77,9],[72,11,77,13],[59,6,65,9],[59,11,65,13],[68,2,68,14],[69,10,70,10],[70,2,70,6],[70,7,70,9],[70,12,70,13],[58,6,58,8],[46,2,46,14],[47,1,47,14],[48,2,53,4],[48,5,48,9],[48,10,48,14],[49,5,49,13],[50,5,50,13],[51,5,51,13],[52,5,52,13],[53,5,53,13],[54,2,54,14],[55,2,55,14],[57,2,57,6],[57,7,57,9],[57,12,57,13],[40,2,40,14],[41,2,45,5],[41,6,41,9],[42,6,42,9],[43,6,43,9],[44,6,44,9],[45,6,45,9],[34,2,34,14],[35,2,39,5],[35,6,35,9],[36,6,36,9],[37,6,37,9],[38,6,38,9],[39,6,39,9],[28,2,28,14],[29,2,33,5],[29,6,29,9],[30,6,30,9],[31,6,31,9],[32,6,32,9],[33,6,33,9],[21,2,21,9],[21,15,21,18],[21,19,21,22],[22,2,22,14],[23,2,27,5],[23,6,23,9],[24,6,24,9],[25,6,25,9],[26,6,26,9],[27,6,27,9],[20,2,20,14],[13,2,13,4],[13,5,13,14],[14,2,14,4],[14,5,14,14],[15,2,16,4],[15,5,15,8],[15,9,15,10],[15,11,15,14],[16,5,16,8],[16,9,16,10],[16,11,16,14],[17,2,17,4],[17,5,17,14],[18,2,18,4],[18,5,18,14],[10,2,10,4],[10,5,10,8],[10,10,10,14],[11,2,11,4],[11,5,11,8],[11,10,11,14],[9,2,9,4],[9,5,9,8],[9,10,9,14],[5,3,5,8],[5,9,5,12],[5,13,5,14],[6,2,6,8],[6,9,6,12],[6,13,6,14],[7,2,7,8],[7,9,7,12],[7,13,7,14],[8,2,8,8],[8,9,8,14],[0,2,0,14],[2,5,2,13],[3,2,3,14],[4,2,4,8],[4,9,4,12],[4,13,4,14]]}
[null,null,"Les largeurs de colonnes et les hauteurs de lignes sont ajustables a votre convenance"]
[]
[null,null,null,null,null,"BACCALAURÉAT SCIENTIFIQUE\nSCIENCES DE L'INGÉNIEUR\nÉPREUVE DE PROJET INTERDISCIPLINAIRE - SESSION 2016"]
[null,null,{"$f":" (\"Fiche descriptive du \"&MID(CELL(\"nomfichier\",A1),FIND(\"]\",CELL(\"nomfichier\",A1))+1,10))","v":"Fiche descriptive du Projet3"}]
[null,null,"Établissement (Nom - adresse) :",null,null,null,null,null,null,"Classe concernée : ",null,null,null,{"$f":"IF('Fiche classe'!H14=0,\"\",'Fiche classe'!H14)","v":"Ts-SI"}]
[null,null,"Lycée:",{"$f":"IF('Fiche classe'!D9:E9=\"\",\"\",'Fiche classe'!D9:E9)","v":"Léonard de Vinci "},null,null,null,null,null,"Effectif classe : ",null,null,null,{"$f":"IF('Fiche classe'!H16=0,\"\",'Fiche classe'!H16)","v":""}]
[null,null,{"$f":"IF('Fiche classe'!C10=\"\",\"\",'Fiche classe'!C10)","v":"2 bis rue Edouard Branly"},null,null,null,null,null,null,"Nombre d'élèves dans le groupe (3 mini - 5 maxi) :",null,null,null,{"$f":"IF(COUNTIF('Fiche classe'!$C$21:$C$55,RIGHT(CELL(\"nomfichier\",A1),LEN(CELL(\"nomfichier\",A1))-FIND(\"]\",CELL(\"nomfichier\",A1))))=0,\"\",(COUNTIF('Fiche classe'!$C$21:$C$55,RIGHT(CELL(\"nomfichier\",A1),LEN(CELL(\"nomfichier\",A1))-FIND(\"]\",CELL(\"nomfichier\",A1))))))","v":""}]
[null,null,{"$f":"IF('Fiche classe'!C11=\"\",\"\",'Fiche classe'!C11)","v":"77011 Melun"},null,null,null,null,null,null,"Groupement :",null,null,null,{"$f":"IF('Fiche classe'!P16=0,\"\",'Fiche classe'!P16)","v":"C"}]
[null,null,"Professeurs S SI",null,null,null,null,null,null,"Professeur associé"]
[null,null,"Nom :",null,null,{"$f":"IF('Fiche classe'!L9=\"\",\"\",'Fiche classe'!L9)","v":"PEUTOT"},null,null,null,"Nom :",{"$f":"IF('Fiche classe'!L11=\"\",\"\",'Fiche classe'!L11)","v":"BOS"}]
[null,null,"Prénom :",null,null,{"$f":"IF('Fiche classe'!L10=\"\",\"\",'Fiche classe'!L10)","v":"Christian"},null,null,null,"Prénom :",{"$f":"IF('Fiche classe'!L12=\"\",\"\",'Fiche classe'!L12)","v":"Jean-Louis"}]
[null,null,"Spécialité :",null,null,{"$f":"IF('Fiche classe'!P9=\"\",\"\",'Fiche classe'!P9)","v":"SII"},null,null,null,"Discipline :",{"$f":"IF('Fiche classe'!P11=\"\",\"\",'Fiche classe'!P11)","v":"Physique"}]
[]
[null,null,"Intitulé du support de projet",null,null,{"$f":"IF(COUNTIF('Fiche classe'!$C$21:$C$55,RIGHT(CELL(\"nomfichier\",A1),LEN(CELL(\"nomfichier\",A1))-FIND(\"]\",CELL(\"nomfichier\",A1))))>0,VLOOKUP(RIGHT(CELL(\"nomfichier\",A1),LEN(CELL(\"nomfichier\",A1))-FIND(\"]\",CELL(\"nomfichier\",A1))),'Fiche classe'!$C$21:$Q$55,4,0),\"\")","v":""}]
[null,null,"Problèmatique :\nIntitulé exact du projet confié au groupe",null,null,{"$f":"IF(COUNTIF('Fiche classe'!$C$21:$C$55,RIGHT(CELL(\"nomfichier\",A1),LEN(CELL(\"nomfichier\",A1))-FIND(\"]\",CELL(\"nomfichier\",A1))))>0,VLOOKUP(RIGHT(CELL(\"nomfichier\",A1),LEN(CELL(\"nomfichier\",A1))-FIND(\"]\",CELL(\"nomfichier\",A1))),'Fiche classe'!$C$21:$Q$55,8,0),\"\")","v":""}]
[null,null,"Contraintes ",null,null,"Économique ",null,null,null,"Technique",null,"Environnementale"]
[]
[null,null,"Nature de la Production élèves attendue"]
[null,null,"Partenariat éventuel"]
[]
[null,null,"REPARTITON DES TACHES PREVISIONNELLES"]
[null,null,"Description des tâches confiées  (cocher le ou les élèves concernés)",null,null,null,null,null,null,null,"ÉLÈVE 1","ÉLÈVE 2","ÉLÈVE 3","ÉLÈVE 4","ÉLÈVE 5","Compétences de Conduite de Projet (Deux max)",null,null,null,"Compétences de Présentation  de Projet (Deux max)"]
[null,null,"Phase 1 : Analyser un problème",null,null,null,null,null,null,null,null,null,null,null,null,"CC n°1","Indicateurs de performance","CC N°2","Indicateurs de performance","CP n°1","Indicateurs de performance","CP N°2","Indicateurs de performance"]
[]
[]
[]
[]
[]
[null,null,"Phase 2 : Imaginer, modéliser des solutions"]
[]
[]
[]
[]
[]
[null,null,"Phase 3 : Choisir, formaliser, réaliser une solution"]
[]
[]
[]
[]
[]
[null,null,"Phase 4 : Evaluer des performances"]
[]
[]
[]
[]
[]
[]
[]
[null,null,"Planning\nprévisionnel\ndu\nprojet\n",null,null,"Etapes du projet",null,null,null,null,"Temps prévisionnel en heure"]
[null,null,null,null,null,"Analyse du problème :"]
[null,null,null,null,null,"Imaginer des solutions :"]
[null,null,null,null,null,"Réalisation de la solution :"]
[null,null,null,null,null,"Évaluation des performances :"]
[null,null,null,null,null,"Total :",null,null,null,null,null,null,null,null,{"$f":"SUM(O50:O53)","v":0}]
[]
[null,null,"Avis du Chef d'établissement"]
[]
[null,null,"Nom - Prénom :",null,null,null,null,null,null,null,null,"Date :"]
[null,null,null,null,null,null,"Remarques - Observations :",null,null,null,null,null,"Signature :"]
[]
[null,null,"Validé"]
[]
[null,null,"Non-Validé (à retravailler)"]
[]
[null,null,"Projet non conforme - annulé"]
[]
[]
[]
[null,null,"Avis de la commission de validation"]
[]
[null,null,"Chef de travaux coordinateur - Nom - Prénom",null,null,null,null,{"$f":"IF('Fiche classe'!L11=\"\",\"\",'Fiche classe'!L15 & \" \" &'Fiche classe'!L16 )","v":"MARRO Fabrice"},null,null,null,"Date :"]
[null,null,null,null,null,null,"Remarques - Observations :",null,null,null,null,null,"Signature :"]
[null,null,"Proposé à la validation"]
[]
[null,null,"À retravailler"]
[]
[null,null,"Non conforme aux exigences"]

{"sheet":"Projet4","index":10,"n_rows":77,"n_cols":23,"rows_kept":77,"cut":false,"hidden":true,"merged":[[71,6,71,8],[71,12,71,13],[72,6,77,9],[72,11,77,13],[59,6,65,9],[59,11,65,13],[68,2,68,14],[69,10,70,10],[70,2,70,6],[70,7,70,9],[70,12,70,13],[58,6,58,8],[46,2,46,14],[47,1,47,14],[48,2,53,4],[48,5,48,9],[48,10,48,14],[49,5,49,13],[50,5,50,13],[51,5,51,13],[52,5,52,13],[53,5,53,13],[54,2,54,14],[55,2,55,14],[57,2,57,6],[57,7,57,9],[57,12,57,13],[40,2,40,14],[41,2,45,5],[41,6,41,9],[42,6,42,9],[43,6,43,9],[44,6,44,9],[45,6,45,9],[34,2,34,14],[35,2,39,5],[35,6,35,9],[36,6,36,9],[37,6,37,9],[38,6,38,9],[39,6,39,9],[28,2,28,14],[29,2,33,5],[29,6,29,9],[30,6,30,9],[31,6,31,9],[32,6,32,9],[33,6,33,9],[21,2,21,9],[21,15,21,18],[21,19,21,22],[22,2,22,14],[23,2,27,5],[23,6,23,9],[24,6,24,9],[25,6,25,9],[26,6,26,9],[27,6,27,9],[20,2,20,14],[13,2,13,4],[13,5,13,14],[14,2,14,4],[14,5,14,14],[15,2,16,4],[15,5,15,8],[15,9,15,10],[15,11,15,14],[16,5,16,8],[16,9,16,10],[16,11,16,14],[17,2,17,4],[17,5,17,14],[18,2,18,4],[18,5,18,14],[10,2,10,4],[10,5,10,8],[10,10,10,14],[11,2,11,4],[11,5,11,8],[11,10,11,14],[9,2,9,4],[9,5,9,8],[9,10,9,14],[5,3,5,8],[5,9,5,12],[5,13,5,14],[6,2,6,8],[6,9,6,12],[6,13,6,14],[7,2,7,8],[7,9,7,12],[7,13,7,14],[8,2,8,8],[8,9,8,14],[0,2,0,14],[2,5,2,13],[3,2,3,14],[4,2,4,8],[4,9,4,12],[4,13,4,14]]}
[null,null,"Les largeurs de colonnes et les hauteurs de lignes sont ajustables a votre convenance"]
[]
[null,null,null,null,null,"BACCALAURÉAT SCIENTIFIQUE\nSCIENCES DE L'INGÉNIEUR\nÉPREUVE DE PROJET INTERDISCIPLINAIRE - SESSION 2016"]
[null,null,{"$f":" (\"Fiche descriptive du \"&MID(CELL(\"nomfichier\",A1),FIND(\"]\",CELL(\"nomfichier\",A1))+1,10))","v":"Fiche descriptive du Projet4"}]
[null,null,"Établissement (Nom - adresse) :",null,null,null,null,null,null,"Classe concernée : ",null,null,null,{"$f":"IF('Fiche classe'!H14=0,\"\",'Fiche classe'!H14)","v":"Ts-SI"}]
[null,null,"Lycée:",{"$f":"IF('Fiche classe'!D9:E9=\"\",\"\",'Fiche classe'!D9:E9)","v":"Léonard de Vinci "},null,null,null,null,null,"Effectif classe : ",null,null,null,{"$f":"IF('Fiche classe'!H16=0,\"\",'Fiche classe'!H16)","v":""}]
[null,null,{"$f":"IF('Fiche classe'!C10=\"\",\"\",'Fiche classe'!C10)","v":"2 bis rue Edouard Branly"},null,null,null,null,null,null,"Nombre d'élèves dans le groupe (3 mini - 5 maxi) :",null,null,null,{"$f":"IF(COUNTIF('Fiche classe'!$C$21:$C$55,RIGHT(CELL(\"nomfichier\",A1),LEN(CELL(\"nomfichier\",A1))-FIND(\"]\",CELL(\"nomfichier\",A1))))=0,\"\",(COUNTIF('Fiche classe'!$C$21:$C$55,RIGHT(CELL(\"nomfichier\",A1),LEN(CELL(\"nomfichier\",A1))-FIND(\"]\",CELL(\"nomfichier\",A1))))))","v":""}]
[null,null,{"$f":"IF('Fiche classe'!C11=\"\",\"\",'Fiche classe'!C11)","v":"77011 Melun"},null,null,null,null,null,null,"Groupement :",null,null,null,{"$f":"IF('Fiche classe'!P16=0,\"\",'Fiche classe'!P16)","v":"C"}]
[null,null,"Professeurs S SI",null,null,null,null,null,null,"Professeur associé"]
[null,null,"Nom :",null,null,{"$f":"IF('Fiche classe'!L9=\"\",\"\",'Fiche classe'!L9)","v":"PEUTOT"},null,null,null,"Nom :",{"$f":"IF('Fiche classe'!L11=\"\",\"\",'Fiche classe'!L11)","v":"BOS"}]
[null,null,"Prénom :",null,null,{"$f":"IF('Fiche classe'!L10=\"\",\"\",'Fiche classe'!L10)","v":"Christian"},null,null,null,"Prénom :",{"$f":"IF('Fiche classe'!L12=\"\",\"\",'Fiche classe'!L12)","v":"Jean-Louis"}]
[null,null,"Spécialité :",null,null,{"$f":"IF('Fiche classe'!P9=\"\",\"\",'Fiche classe'!P9)","v":"SII"},null,null,null,"Discipline :",{"$f":"IF('Fiche classe'!P11=\"\",\"\",'Fiche classe'!P11)","v":"Physique"}]
[]
[null,null,"Intitulé du support de projet",null,null,{"$f":"IF(COUNTIF('Fiche classe'!$C$21:$C$55,RIGHT(CELL(\"nomfichier\",A1),LEN(CELL(\"nomfichier\",A1))-FIND(\"]\",CELL(\"nomfichier\",A1))))>0,VLOOKUP(RIGHT(CELL(\"nomfichier\",A1),LEN(CELL(\"nomfichier\",A1))-FIND(\"]\",CELL(\"nomfichier\",A1))),'Fiche classe'!$C$21:$Q$55,4,0),\"\")","v":""}]
[null,null,"Problèmatique :\nIntitulé exact du projet confié au groupe",null,null,{"$f":"IF(COUNTIF('Fiche classe'!$C$21:$C$55,RIGHT(CELL(\"nomfichier\",A1),LEN(CELL(\"nomfichier\",A1))-FIND(\"]\",CELL(\"nomfichier\",A1))))>0,VLOOKUP(RIGHT(CELL(\"nomfichier\",A1),LEN(CELL(\"nomfichier\",A1))-FIND(\"]\",CELL(\"nomfichier\",A1))),'Fiche classe'!$C$21:$Q$55,8,0),\"\")","v":""}]
[null,null,"Contraintes ",null,null,"Économique ",null,null,null,"Technique",null,"Environnementale"]
[]
[null,null,"Nature de la Production élèves attendue"]
[null,null,"Partenariat éventuel"]
[]
[null,null,"REPARTITON DES TACHES PREVISIONNELLES"]
[null,null,"Description des tâches confiées  (cocher le ou les élèves concernés)",null,null,null,null,null,null,null,"ÉLÈVE 1","ÉLÈVE 2","ÉLÈVE 3","ÉLÈVE 4","ÉLÈVE 5","Compétences de Conduite de Projet (Deux max)",null,null,null,"Compétences de Présentation  de Projet (Deux max)"]
[null,null,"Phase 1 : Analyser un problème",null,null,null,null,null,null,null,null,null,null,null,null,"CC n°1","Indicateurs de performance","CC N°2","Indicateurs de performance","CP n°1","Indicateurs de performance","CP N°2","Indicateurs de performance"]
[]
[]
[]
[]
[]
[null,null,"Phase 2 : Imaginer, modéliser des solutions"]
[]
[]
[]
[]
[]
[null,null,"Phase 3 : Choisir, formaliser, réaliser une solution"]
[]
[]
[]
[]
[]
[null,null,"Phase 4 : Evaluer des performances"]
[]
[]
[]
[]
[]
[]
[]
[null,null,"Planning\nprévisionnel\ndu\nprojet\n",null,null,"Etapes du projet",null,null,null,null,"Temps prévisionnel en heure"]
[null,null,null,null,null,"Analyse du problème :"]
[null,null,null,null,null,"Imaginer des solutions :"]
[null,null,null,null,null,"Réalisation de la solution :"]
[null,null,null,null,null,"Évaluation des performances :"]
[null,null,null,null,null,"Total :",null,null,null,null,null,null,null,null,{"$f":"SUM(O50:O53)","v":0}]
[]
[null,null,"Avis du Chef d'établissement"]
[]
[null,null,"Nom - Prénom :",null,null,null,null,null,null,null,null,"Date :"]
[null,null,null,null,null,null,"Remarques - Observations :",null,null,null,null,null,"Signature :"]
[]
[null,null,"Validé"]
[]
[null,null,"Non-Validé (à retravailler)"]
[]
[null,null,"Projet non conforme - annulé"]
[]
[]
[]
[null,null,"Avis de la commission de validation"]
[]
[null,null,"Chef de travaux coordinateur - Nom - Prénom",null,null,null,null,{"$f":"IF('Fiche classe'!L11=\"\",\"\",'Fiche classe'!L15 & \" \" &'Fiche classe'!L16 )","v":"MARRO Fabrice"},null,null,null,"Date :"]
[null,null,null,null,null,null,"Remarques - Observations :",null,null,null,null,null,"Signature :"]
[null,null,"Proposé à la validation"]
[]
[null,null,"À retravailler"]
[]
[null,null,"Non conforme aux exigences"]

{"sheet":"Projet5","index":11,"n_rows":77,"n_cols":23,"rows_kept":77,"cut":false,"hidden":true,"merged":[[71,6,71,8],[71,12,71,13],[72,6,77,9],[72,11,77,13],[59,6,65,9],[59,11,65,13],[68,2,68,14],[69,10,70,10],[70,2,70,6],[70,7,70,9],[70,12,70,13],[58,6,58,8],[46,2,46,14],[47,1,47,14],[48,2,53,4],[48,5,48,9],[48,10,48,14],[49,5,49,13],[50,5,50,13],[51,5,51,13],[52,5,52,13],[53,5,53,13],[54,2,54,14],[55,2,55,14],[57,2,57,6],[57,7,57,9],[57,12,57,13],[40,2,40,14],[41,2,45,5],[41,6,41,9],[42,6,42,9],[43,6,43,9],[44,6,44,9],[45,6,45,9],[34,2,34,14],[35,2,39,5],[35,6,35,9],[36,6,36,9],[37,6,37,9],[38,6,38,9],[39,6,39,9],[28,2,28,14],[29,2,33,5],[29,6,29,9],[30,6,30,9],[31,6,31,9],[32,6,32,9],[33,6,33,9],[21,2,21,9],[21,15,21,18],[21,19,21,22],[22,2,22,14],[23,2,27,5],[23,6,23,9],[24,6,24,9],[25,6,25,9],[26,6,26,9],[27,6,27,9],[20,2,20,14],[13,2,13,4],[13,5,13,14],[14,2,14,4],[14,5,14,14],[15,2,16,4],[15,5,15,8],[15,9,15,10],[15,11,15,14],[16,5,16,8],[16,9,16,10],[16,11,16,14],[17,2,17,4],[17,5,17,14],[18,2,18,4],[18,5,18,14],[10,2,10,4],[10,5,10,8],[10,10,10,14],[11,2,11,4],[11,5,11,8],[11,10,11,14],[9,2,9,4],[9,5,9,8],[9,10,9,14],[5,3,5,8],[5,9,5,12],[5,13,5,14],[6,2,6,8],[6,9,6,12],[6,13,6,14],[7,2,7,8],[7,9,7,12],[7,13,7,14],[8,2,8,8],[8,9,8,14],[0,2,0,14],[2,5,2,13],[3,2,3,14],[4,2,4,8],[4,9,4,12],[4,13,4,14]]}
[null,null,"Les largeurs de colonnes et les hauteurs de lignes sont ajustables a votre convenance"]
[]
[null,null,null,null,null,"BACCALAURÉAT SCIENTIFIQUE\nSCIENCES DE L'INGÉNIEUR\nÉPREUVE DE PROJET INTERDISCIPLINAIRE - SESSION 2016"]
[null,null,{"$f":" (\"Fiche descriptive du \"&MID(CELL(\"nomfichier\",A1),FIND(\"]\",CELL(\"nomfichier\",A1))+1,10))","v":"Fiche descriptive du Projet5"}]
[null,null,"Établissement (Nom - adresse) :",null,null,null,null,null,null,"Classe concernée : ",null,null,null,{"$f":"IF('Fiche classe'!H14=0,\"\",'Fiche classe'!H14)","v":"Ts-SI"}]
[null,null,"Lycée:",{"$f":"IF('Fiche classe'!D9:E9=\"\",\"\",'Fiche classe'!D9:E9)","v":"Léonard de Vinci "},null,null,null,null,null,"Effectif classe : ",null,null,null,{"$f":"IF('Fiche classe'!H16=0,\"\",'Fiche classe'!H16)","v":""}]
[null,null,{"$f":"IF('Fiche classe'!C10=\"\",\"\",'Fiche classe'!C10)","v":"2 bis rue Edouard Branly"},null,null,null,null,null,null,"Nombre d'élèves dans le groupe (3 mini - 5 maxi) :",null,null,null,{"$f":"IF(COUNTIF('Fiche classe'!$C$21:$C$55,RIGHT(CELL(\"nomfichier\",A1),LEN(CELL(\"nomfichier\",A1))-FIND(\"]\",CELL(\"nomfichier\",A1))))=0,\"\",(COUNTIF('Fiche classe'!$C$21:$C$55,RIGHT(CELL(\"nomfichier\",A1),LEN(CELL(\"nomfichier\",A1))-FIND(\"]\",CELL(\"nomfichier\",A1))))))","v":""}]
[null,null,{"$f":"IF('Fiche classe'!C11=\"\",\"\",'Fiche classe'!C11)","v":"77011 Melun"},null,null,null,null,null,null,"Groupement :",null,null,null,{"$f":"IF('Fiche classe'!P16=0,\"\",'Fiche classe'!P16)","v":"C"}]
[null,null,"Professeurs S SI",null,null,null,null,null,null,"Professeur associé"]
[null,null,"Nom :",null,null,{"$f":"IF('Fiche classe'!L9=\"\",\"\",'Fiche classe'!L9)","v":"PEUTOT"},null,null,null,"Nom :",{"$f":"IF('Fiche classe'!L11=\"\",\"\",'Fiche classe'!L11)","v":"BOS"}]
[null,null,"Prénom :",null,null,{"$f":"IF('Fiche classe'!L10=\"\",\"\",'Fiche classe'!L10)","v":"Christian"},null,null,null,"Prénom :",{"$f":"IF('Fiche classe'!L12=\"\",\"\",'Fiche classe'!L12)","v":"Jean-Louis"}]
[null,null,"Spécialité :",null,null,{"$f":"IF('Fiche classe'!P9=\"\",\"\",'Fiche classe'!P9)","v":"SII"},null,null,null,"Discipline :",{"$f":"IF('Fiche classe'!P11=\"\",\"\",'Fiche classe'!P11)","v":"Physique"}]
[]
[null,null,"Intitulé du support de projet",null,null,{"$f":"IF(COUNTIF('Fiche classe'!$C$21:$C$55,RIGHT(CELL(\"nomfichier\",A1),LEN(CELL(\"nomfichier\",A1))-FIND(\"]\",CELL(\"nomfichier\",A1))))>0,VLOOKUP(RIGHT(CELL(\"nomfichier\",A1),LEN(CELL(\"nomfichier\",A1))-FIND(\"]\",CELL(\"nomfichier\",A1))),'Fiche classe'!$C$21:$Q$55,4,0),\"\")","v":""}]
[null,null,"Problèmatique :\nIntitulé exact du projet confié au groupe",null,null,{"$f":"IF(COUNTIF('Fiche classe'!$C$21:$C$55,RIGHT(CELL(\"nomfichier\",A1),LEN(CELL(\"nomfichier\",A1))-FIND(\"]\",CELL(\"nomfichier\",A1))))>0,VLOOKUP(RIGHT(CELL(\"nomfichier\",A1),LEN(CELL(\"nomfichier\",A1))-FIND(\"]\",CELL(\"nomfichier\",A1))),'Fiche classe'!$C$21:$Q$55,8,0),\"\")","v":""}]
[null,null,"Contraintes ",null,null,"Économique ",null,null,null,"Technique",null,"Environnementale"]
[]
[null,null,"Nature de la Production élèves attendue"]
[null,null,"Partenariat éventuel"]
[]
[null,null,"REPARTITON DES TACHES PREVISIONNELLES"]
[null,null,"Description des tâches confiées  (cocher le ou les élèves concernés)",null,null,null,null,null,null,null,"ÉLÈVE 1","ÉLÈVE 2","ÉLÈVE 3","ÉLÈVE 4","ÉLÈVE 5","Compétences de Conduite de Projet (Deux max)",null,null,null,"Compétences de Présentation  de Projet (Deux max)"]
[null,null,"Phase 1 : Analyser un problème",null,null,null,null,null,null,null,null,null,null,null,null,"CC n°1","Indicateurs de performance","CC N°2","Indicateurs de performance","CP n°1","Indicateurs de performance","CP N°2","Indicateurs de performance"]
[]
[]
[]
[]
[]
[null,null,"Phase 2 : Imaginer, modéliser des solutions"]
[]
[]
[]
[]
[]
[null,null,"Phase 3 : Choisir, formaliser, réaliser une solution"]
[]
[]
[]
[]
[]
[null,null,"Phase 4 : Evaluer des performances"]
[]
[]
[]
[]
[]
[]
[]
[null,null,"Planning\nprévisionnel\ndu\nprojet\n",null,null,"Etapes du projet",null,null,null,null,"Temps prévisionnel en heure"]
[null,null,null,null,null,"Analyse du problème :"]
[null,null,null,null,null,"Imaginer des solutions :"]
[null,null,null,null,null,"Réalisation de la solution :"]
[null,null,null,null,null,"Évaluation des performances :"]
[null,null,null,null,null,"Total :",null,null,null,null,null,null,null,null,{"$f":"SUM(O50:O53)","v":0}]
[]
[null,null,"Avis du Chef d'établissement"]
[]
[null,null,"Nom - Prénom :",null,null,null,null,null,null,null,null,"Date :"]
[null,null,null,null,null,null,"Remarques - Observations :",null,null,null,null,null,"Signature :"]
[]
[null,null,"Validé"]
[]
[null,null,"Non-Validé (à retravailler)"]
[]
[null,null,"Projet non conforme - annulé"]
[]
[]
[]
[null,null,"Avis de la commission de validation"]
[]
[null,null,"Chef de travaux coordinateur - Nom - Prénom",null,null,null,null,{"$f":"IF('Fiche classe'!L11=\"\",\"\",'Fiche classe'!L15 & \" \" &'Fiche classe'!L16 )","v":"MARRO Fabrice"},null,null,null,"Date :"]
[null,null,null,null,null,null,"Remarques - Observations :",null,null,null,null,null,"Signature :"]
[null,null,"Proposé à la validation"]
[]
[null,null,"À retravailler"]
[]
[null,null,"Non conforme aux exigences"]

{"sheet":"Projet6","index":12,"n_rows":77,"n_cols":23,"rows_kept":77,"cut":false,"hidden":true,"merged":[[71,6,71,8],[71,12,71,13],[72,6,77,9],[72,11,77,13],[59,6,65,9],[59,11,65,13],[68,2,68,14],[69,10,70,10],[70,2,70,6],[70,7,70,9],[70,12,70,13],[58,6,58,8],[46,2,46,14],[47,1,47,14],[48,2,53,4],[48,5,48,9],[48,10,48,14],[49,5,49,13],[50,5,50,13],[51,5,51,13],[52,5,52,13],[53,5,53,13],[54,2,54,14],[55,2,55,14],[57,2,57,6],[57,7,57,9],[57,12,57,13],[40,2,40,14],[41,2,45,5],[41,6,41,9],[42,6,42,9],[43,6,43,9],[44,6,44,9],[45,6,45,9],[34,2,34,14],[35,2,39,5],[35,6,35,9],[36,6,36,9],[37,6,37,9],[38,6,38,9],[39,6,39,9],[28,2,28,14],[29,2,33,5],[29,6,29,9],[30,6,30,9],[31,6,31,9],[32,6,32,9],[33,6,33,9],[21,2,21,9],[21,15,21,18],[21,19,21,22],[22,2,22,14],[23,2,27,5],[23,6,23,9],[24,6,24,9],[25,6,25,9],[26,6,26,9],[27,6,27,9],[20,2,20,14],[13,2,13,4],[13,5,13,14],[14,2,14,4],[14,5,14,14],[15,2,16,4],[15,5,15,8],[15,9,15,10],[15,11,15,14],[16,5,16,8],[16,9,16,10],[16,11,16,14],[17,2,17,4],[17,5,17,14],[18,2,18,4],[18,5,18,14],[10,2,10,4],[10,5,10,8],[10,10,10,14],[11,2,11,4],[11,5,11,8],[11,10,11,14],[9,2,9,4],[9,5,9,8],[9,10,9,14],[5,3,5,8],[5,9,5,12],[5,13,5,14],[6,2,6,8],[6,9,6,12],[6,13,6,14],[7,2,7,8],[7,9,7,12],[7,13,7,14],[8,2,8,8],[8,9,8,14],[0,2,0,14],[2,5,2,13],[3,2,3,14],[4,2,4,8],[4,9,4,12],[4,13,4,14]]}
[null,null,"Les largeurs de colonnes et les hauteurs de lignes sont ajustables a votre convenance"]
[]
[null,null,null,null,null,"BACCALAURÉAT SCIENTIFIQUE\nSCIENCES DE L'INGÉNIEUR\nÉPREUVE DE PROJET INTERDISCIPLINAIRE - SESSION 2016"]
[null,null,{"$f":" (\"Fiche descriptive du \"&MID(CELL(\"nomfichier\",A1),FIND(\"]\",CELL(\"nomfichier\",A1))+1,10))","v":"Fiche descriptive du Projet6"}]
[null,null,"Établissement (Nom - adresse) :",null,null,null,null,null,null,"Classe concernée : ",null,null,null,{"$f":"IF('Fiche classe'!H14=0,\"\",'Fiche classe'!H14)","v":"Ts-SI"}]
[null,null,"Lycée:",{"$f":"IF('Fiche classe'!D9:E9=\"\",\"\",'Fiche classe'!D9:E9)","v":"Léonard de Vinci "},null,null,null,null,null,"Effectif classe : ",null,null,null,{"$f":"IF('Fiche classe'!H16=0,\"\",'Fiche classe'!H16)","v":""}]
[null,null,{"$f":"IF('Fiche classe'!C10=\"\",\"\",'Fiche classe'!C10)","v":"2 bis rue Edouard Branly"},null,null,null,null,null,null,"Nombre d'élèves dans le groupe (3 mini - 5 maxi) :",null,null,null,{"$f":"IF(COUNTIF('Fiche classe'!$C$21:$C$55,RIGHT(CELL(\"nomfichier\",A1),LEN(CELL(\"nomfichier\",A1))-FIND(\"]\",CELL(\"nomfichier\",A1))))=0,\"\",(COUNTIF('Fiche classe'!$C$21:$C$55,RIGHT(CELL(\"nomfichier\",A1),LEN(CELL(\"nomfichier\",A1))-FIND(\"]\",CELL(\"nomfichier\",A1))))))","v":""}]
[null,null,{"$f":"IF('Fiche classe'!C11=\"\",\"\",'Fiche classe'!C11)","v":"77011 Melun"},null,null,null,null,null,null,"Groupement :",null,null,null,{"$f":"IF('Fiche classe'!P16=0,\"\",'Fiche classe'!P16)","v":"C"}]
[null,null,"Professeurs S SI",null,null,null,null,null,null,"Professeur associé"]
[null,null,"Nom :",null,null,{"$f":"IF('Fiche classe'!L9=\"\",\"\",'Fiche classe'!L9)","v":"PEUTOT"},null,null,null,"Nom :",{"$f":"IF('Fiche classe'!L11=\"\",\"\",'Fiche classe'!L11)","v":"BOS"}]
[null,null,"Prénom :",null,null,{"$f":"IF('Fiche classe'!L10=\"\",\"\",'Fiche classe'!L10)","v":"Christian"},null,null,null,"Prénom :",{"$f":"IF('Fiche classe'!L12=\"\",\"\",'Fiche classe'!L12)","v":"Jean-Louis"}]
[null,null,"Spécialité :",null,null,{"$f":"IF('Fiche classe'!P9=\"\",\"\",'Fiche classe'!P9)","v":"SII"},null,null,null,"Discipline :",{"$f":"IF('Fiche classe'!P11=\"\",\"\",'Fiche classe'!P11)","v":"Physique"}]
[]
[null,null,"Intitulé du support de projet",null,null,{"$f":"IF(COUNTIF('Fiche classe'!$C$21:$C$55,RIGHT(CELL(\"nomfichier\",A1),LEN(CELL(\"nomfichier\",A1))-FIND(\"]\",CELL(\"nomfichier\",A1))))>0,VLOOKUP(RIGHT(CELL(\"nomfichier\",A1),LEN(CELL(\"nomfichier\",A1))-FIND(\"]\",CELL(\"nomfichier\",A1))),'Fiche classe'!$C$21:$Q$55,4,0),\"\")","v":""}]
[null,null,"Problèmatique :\nIntitulé exact du projet confié au groupe",null,null,{"$f":"IF(COUNTIF('Fiche classe'!$C$21:$C$55,RIGHT(CELL(\"nomfichier\",A1),LEN(CELL(\"nomfichier\",A1))-FIND(\"]\",CELL(\"nomfichier\",A1))))>0,VLOOKUP(RIGHT(CELL(\"nomfichier\",A1),LEN(CELL(\"nomfichier\",A1))-FIND(\"]\",CELL(\"nomfichier\",A1))),'Fiche classe'!$C$21:$Q$55,8,0),\"\")","v":""}]
[null,null,"Contraintes ",null,null,"Économique ",null,null,null,"Technique",null,"Environnementale"]
[]
[null,null,"Nature de la Production élèves attendue"]
[null,null,"Partenariat éventuel"]
[]
[null,null,"REPARTITON DES TACHES PREVISIONNELLES"]
[null,null,"Description des tâches confiées  (cocher le ou les élèves concernés)",null,null,null,null,null,null,null,"ÉLÈVE 1","ÉLÈVE 2","ÉLÈVE 3","ÉLÈVE 4","ÉLÈVE 5","Compétences de Conduite de Projet (Deux max)",null,null,null,"Compétences de Présentation  de Projet (Deux max)"]
[null,null,"Phase 1 : Analyser un problème",null,null,null,null,null,null,null,null,null,null,null,null,"CC n°1","Indicateurs de performance","CC N°2","Indicateurs de performance","CP n°1","Indicateurs de performance","CP N°2","Indicateurs de performance"]
[]
[]
[]
[]
[]
[null,null,"Phase 2 : Imaginer, modéliser des solutions"]
[]
[]
[]
[]
[]
[null,null,"Phase 3 : Choisir, formaliser, réaliser une solution"]
[]
[]
[]
[]
[]
[null,null,"Phase 4 : Evaluer des performances"]
[]
[]
[]
[]
[]
[]
[]
[null,null,"Planning\nprévisionnel\ndu\nprojet\n",null,null,"Etapes du projet",null,null,null,null,"Temps prévisionnel en heure"]
[null,null,null,null,null,"Analyse du problème :"]
[null,null,null,null,null,"Imaginer des solutions :"]
[null,null,null,null,null,"Réalisation de la solution :"]
[null,null,null,null,null,"Évaluation des performances :"]
[null,null,null,null,null,"Total :",null,null,null,null,null,null,null,null,{"$f":"SUM(O50:O53)","v":0}]
[]
[null,null,"Avis du Chef d'établissement"]
[]
[null,null,"Nom - Prénom :",null,null,null,null,null,null,null,null,"Date :"]
[null,null,null,null,null,null,"Remarques - Observations :",null,null,null,null,null,"Signature :"]
[]
[null,null,"Validé"]
[]
[null,null,"Non-Validé (à retravailler)"]
[]
[null,null,"Projet non conforme - annulé"]
[]
[]
[]
[null,null,"Avis de la commission de validation"]
[]
[null,null,"Chef de travaux coordinateur - Nom - Prénom",null,null,null,null,{"$f":"IF('Fiche classe'!L11=\"\",\"\",'Fiche classe'!L15 & \" \" &'Fiche classe'!L16 )","v":"MARRO Fabrice"},null,null,null,"Date :"]
[null,null,null,null,null,null,"Remarques - Observations :",null,null,null,null,null,"Signature :"]
[null,null,"Proposé à la validation"]
[]
[null,null,"À retravailler"]
[]
[null,null,"Non conforme aux exigences"]

{"sheet":"Projet7","index":13,"n_rows":77,"n_cols":23,"rows_kept":77,"cut":false,"hidden":true,"merged":[[71,6,71,8],[71,12,71,13],[72,6,77,9],[72,11,77,13],[59,6,65,9],[59,11,65,13],[68,2,68,14],[69,10,70,10],[70,2,70,6],[70,7,70,9],[70,12,70,13],[58,6,58,8],[46,2,46,14],[47,1,47,14],[48,2,53,4],[48,5,48,9],[48,10,48,14],[49,5,49,13],[50,5,50,13],[51,5,51,13],[52,5,52,13],[53,5,53,13],[54,2,54,14],[55,2,55,14],[57,2,57,6],[57,7,57,9],[57,12,57,13],[40,2,40,14],[41,2,45,5],[41,6,41,9],[42,6,42,9],[43,6,43,9],[44,6,44,9],[45,6,45,9],[34,2,34,14],[35,2,39,5],[35,6,35,9],[36,6,36,9],[37,6,37,9],[38,6,38,9],[39,6,39,9],[28,2,28,14],[29,2,33,5],[29,6,29,9],[30,6,30,9],[31,6,31,9],[32,6,32,9],[33,6,33,9],[21,2,21,9],[21,15,21,18],[21,19,21,22],[22,2,22,14],[23,2,27,5],[23,6,23,9],[24,6,24,9],[25,6,25,9],[26,6,26,9],[27,6,27,9],[20,2,20,14],[13,2,13,4],[13,5,13,14],[14,2,14,4],[14,5,14,14],[15,2,16,4],[15,5,15,8],[15,9,15,10],[15,11,15,14],[16,5,16,8],[16,9,16,10],[16,11,16,14],[17,2,17,4],[17,5,17,14],[18,2,18,4],[18,5,18,14],[10,2,10,4],[10,5,10,8],[10,10,10,14],[11,2,11,4],[11,5,11,8],[11,10,11,14],[9,2,9,4],[9,5,9,8],[9,10,9,14],[5,3,5,8],[5,9,5,12],[5,13,5,14],[6,2,6,8],[6,9,6,12],[6,13,6,14],[7,2,7,8],[7,9,7,12],[7,13,7,14],[8,2,8,8],[8,9,8,14],[0,2,0,14],[2,5,2,13],[3,2,3,14],[4,2,4,8],[4,9,4,12],[4,13,4,14]]}
[null,null,"Les largeurs de colonnes et les hauteurs de lignes sont ajustables a votre convenance"]
[]
[null,null,null,null,null,"BACCALAURÉAT SCIENTIFIQUE\nSCIENCES DE L'INGÉNIEUR\nÉPREUVE DE PROJET INTERDISCIPLINAIRE - SESSION 2016"]
[null,null,{"$f":" (\"Fiche descriptive du \"&MID(CELL(\"nomfichier\",A1),FIND(\"]\",CELL(\"nomfichier\",A1))+1,10))","v":"Fiche descriptive du Projet7"}]
[null,null,"Établissement (Nom - adresse) :",null,null,null,null,null,null,"Classe concernée : ",null,null,null,{"$f":"IF('Fiche classe'!H14=0,\"\",'Fiche classe'!H14)","v":"Ts-SI"}]
[null,null,"Lycée:",{"$f":"IF('Fiche classe'!D9:E9=\"\",\"\",'Fiche classe'!D9:E9)","v":"Léonard de Vinci "},null,null,null,null,null,"Effectif classe : ",null,null,null,{"$f":"IF('Fiche classe'!H16=0,\"\",'Fiche classe'!H16)","v":""}]
[null,null,{"$f":"IF('Fiche classe'!C10=\"\",\"\",'Fiche classe'!C10)","v":"2 bis rue Edouard Branly"},null,null,null,null,null,null,"Nombre d'élèves dans le groupe (3 mini - 5 maxi) :",null,null,null,{"$f":"IF(COUNTIF('Fiche classe'!$C$21:$C$55,RIGHT(CELL(\"nomfichier\",A1),LEN(CELL(\"nomfichier\",A1))-FIND(\"]\",CELL(\"nomfichier\",A1))))=0,\"\",(COUNTIF('Fiche classe'!$C$21:$C$55,RIGHT(CELL(\"nomfichier\",A1),LEN(CELL(\"nomfichier\",A1))-FIND(\"]\",CELL(\"nomfichier\",A1))))))","v":""}]
[null,null,{"$f":"IF('Fiche classe'!C11=\"\",\"\",'Fiche classe'!C11)","v":"77011 Melun"},null,null,null,null,null,null,"Groupement :",null,null,null,{"$f":"IF('Fiche classe'!P16=0,\"\",'Fiche classe'!P16)","v":"C"}]
[null,null,"Professeurs S SI",null,null,null,null,null,null,"Professeur associé"]
[null,null,"Nom :",null,null,{"$f":"IF('Fiche classe'!L9=\"\",\"\",'Fiche classe'!L9)","v":"PEUTOT"},null,null,null,"Nom :",{"$f":"IF('Fiche classe'!L11=\"\",\"\",'Fiche classe'!L11)","v":"BOS"}]
[null,null,"Prénom :",null,null,{"$f":"IF('Fiche classe'!L10=\"\",\"\",'Fiche classe'!L10)","v":"Christian"},null,null,null,"Prénom :",{"$f":"IF('Fiche classe'!L12=\"\",\"\",'Fiche classe'!L12)","v":"Jean-Louis"}]
[null,null,"Spécialité :",null,null,{"$f":"IF('Fiche classe'!P9=\"\",\"\",'Fiche classe'!P9)","v":"SII"},null,null,null,"Discipline :",{"$f":"IF('Fiche classe'!P11=\"\",\"\",'Fiche classe'!P11)","v":"Physique"}]
[]
[null,null,"Intitulé du support de projet",null,null,{"$f":"IF(COUNTIF('Fiche classe'!$C$21:$C$55,RIGHT(CELL(\"nomfichier\",A1),LEN(CELL(\"nomfichier\",A1))-FIND(\"]\",CELL(\"nomfichier\",A1))))>0,VLOOKUP(RIGHT(CELL(\"nomfichier\",A1),LEN(CELL(\"nomfichier\",A1))-FIND(\"]\",CELL(\"nomfichier\",A1))),'Fiche classe'!$C$21:$Q$55,4,0),\"\")","v":""}]
[null,null,"Problèmatique :\nIntitulé exact du projet confié au groupe",null,null,{"$f":"IF(COUNTIF('Fiche classe'!$C$21:$C$55,RIGHT(CELL(\"nomfichier\",A1),LEN(CELL(\"nomfichier\",A1))-FIND(\"]\",CELL(\"nomfichier\",A1))))>0,VLOOKUP(RIGHT(CELL(\"nomfichier\",A1),LEN(CELL(\"nomfichier\",A1))-FIND(\"]\",CELL(\"nomfichier\",A1))),'Fiche classe'!$C$21:$Q$55,8,0),\"\")","v":""}]
[null,null,"Contraintes ",null,null,"Économique ",null,null,null,"Technique",null,"Environnementale"]
[]
[null,null,"Nature de la Production élèves attendue"]
[null,null,"Partenariat éventuel"]
[]
[null,null,"REPARTITON DES TACHES PREVISIONNELLES"]
[null,null,"Description des tâches confiées  (cocher le ou les élèves concernés)",null,null,null,null,null,null,null,"ÉLÈVE 1","ÉLÈVE 2","ÉLÈVE 3","ÉLÈVE 4","ÉLÈVE 5","Compétences de Conduite de Projet (Deux max)",null,null,null,"Compétences de Présentation  de Projet (Deux max)"]
[null,null,"Phase 1 : Analyser un problème",null,null,null,null,null,null,null,null,null,null,null,null,"CC n°1","Indicateurs de performance","CC N°2","Indicateurs de performance","CP n°1","Indicateurs de performance","CP N°2","Indicateurs de performance"]
[]
[]
[]
[]
[]
[null,null,"Phase 2 : Imaginer, modéliser des solutions"]
[]
[]
[]
[]
[]
[null,null,"Phase 3 : Choisir, formaliser, réaliser une solution"]
[]
[]
[]
[]
[]
[null,null,"Phase 4 : Evaluer des performances"]
[]
[]
[]
[]
[]
[]
[]
[null,null,"Planning\nprévisionnel\ndu\nprojet\n",null,null,"Etapes du projet",null,null,null,null,"Temps prévisionnel en heure"]
[null,null,null,null,null,"Analyse du problème :"]
[null,null,null,null,null,"Imaginer des solutions :"]
[null,null,null,null,null,"Réalisation de la solution :"]
[null,null,null,null,null,"Évaluation des performances :"]
[null,null,null,null,null,"Total :",null,null,null,null,null,null,null,null,{"$f":"SUM(O50:O53)","v":0}]
[]
[null,null,"Avis du Chef d'établissement"]
[]
[null,null,"Nom - Prénom :",null,null,null,null,null,null,null,null,"Date :"]
[null,null,null,null,null,null,"Remarques - Observations :",null,null,null,null,null,"Signature :"]
[]
[null,null,"Validé"]
[]
[null,null,"Non-Validé (à retravailler)"]
[]
[null,null,"Projet non conforme - annulé"]
[]
[]
[]
[null,null,"Avis de la commission de validation"]
[]
[null,null,"Chef de travaux coordinateur - Nom - Prénom",null,null,null,null,{"$f":"IF('Fiche classe'!L11=\"\",\"\",'Fiche classe'!L15 & \" \" &'Fiche classe'!L16 )","v":"MARRO Fabrice"},null,null,null,"Date :"]
[null,null,null,null,null,null,"Remarques - Observations :",null,null,null,null,null,"Signature :"]
[null,null,"Proposé à la validation"]
[]
[null,null,"À retravailler"]
[]
[null,null,"Non conforme aux exigences"]

{"sheet":"Projet8","index":14,"n_rows":77,"n_cols":23,"rows_kept":77,"cut":false,"hidden":true,"merged":[[71,6,71,8],[71,12,71,13],[72,6,77,9],[72,11,77,13],[59,6,65,9],[59,11,65,13],[68,2,68,14],[69,10,70,10],[70,2,70,6],[70,7,70,9],[70,12,70,13],[58,6,58,8],[46,2,46,14],[47,1,47,14],[48,2,53,4],[48,5,48,9],[48,10,48,14],[49,5,49,13],[50,5,50,13],[51,5,51,13],[52,5,52,13],[53,5,53,13],[54,2,54,14],[55,2,55,14],[57,2,57,6],[57,7,57,9],[57,12,57,13],[40,2,40,14],[41,2,45,5],[41,6,41,9],[42,6,42,9],[43,6,43,9],[44,6,44,9],[45,6,45,9],[34,2,34,14],[35,2,39,5],[35,6,35,9],[36,6,36,9],[37,6,37,9],[38,6,38,9],[39,6,39,9],[28,2,28,14],[29,2,33,5],[29,6,29,9],[30,6,30,9],[31,6,31,9],[32,6,32,9],[33,6,33,9],[21,2,21,9],[21,15,21,18],[21,19,21,22],[22,2,22,14],[23,2,27,5],[23,6,23,9],[24,6,24,9],[25,6,25,9],[26,6,26,9],[27,6,27,9],[20,2,20,14],[13,2,13,4],[13,5,13,14],[14,2,14,4],[14,5,14,14],[15,2,16,4],[15,5,15,8],[15,9,15,10],[15,11,15,14],[16,5,16,8],[16,9,16,10],[16,11,16,14],[17,2,17,4],[17,5,17,14],[18,2,18,4],[18,5,18,14],[10,2,10,4],[10,5,10,8],[10,10,10,14],[11,2,11,4],[11,5,11,8],[11,10,11,14],[9,2,9,4],[9,5,9,8],[9,10,9,14],[5,3,5,8],[5,9,5,12],[5,13,5,14],[6,2,6,8],[6,9,6,12],[6,13,6,14],[7,2,7,8],[7,9,7,12],[7,13,7,14],[8,2,8,8],[8,9,8,14],[0,2,0,14],[2,5,2,13],[3,2,3,14],[4,2,4,8],[4,9,4,12],[4,13,4,14]]}
[null,null,"Les largeurs de colonnes et les hauteurs de lignes sont ajustables a votre convenance"]
[]
[null,null,null,null,null,"BACCALAURÉAT SCIENTIFIQUE\nSCIENCES DE L'INGÉNIEUR\nÉPREUVE DE PROJET INTERDISCIPLINAIRE - SESSION 2016"]
[null,null,{"$f":" (\"Fiche descriptive du \"&MID(CELL(\"nomfichier\",A1),FIND(\"]\",CELL(\"nomfichier\",A1))+1,10))","v":"Fiche descriptive du Projet8"}]
[null,null,"Établissement (Nom - adresse) :",null,null,null,null,null,null,"Classe concernée : ",null,null,null,{"$f":"IF('Fiche classe'!H14=0,\"\",'Fiche classe'!H14)","v":"Ts-SI"}]
[null,null,"Lycée:",{"$f":"IF('Fiche classe'!D9:E9=\"\",\"\",'Fiche classe'!D9:E9)","v":"Léonard de Vinci "},null,null,null,null,null,"Effectif classe : ",null,null,null,{"$f":"IF('Fiche classe'!H16=0,\"\",'Fiche classe'!H16)","v":""}]
[null,null,{"$f":"IF('Fiche classe'!C10=\"\",\"\",'Fiche classe'!C10)","v":"2 bis rue Edouard Branly"},null,null,null,null,null,null,"Nombre d'élèves dans le groupe (3 mini - 5 maxi) :",null,null,null,{"$f":"IF(COUNTIF('Fiche classe'!$C$21:$C$55,RIGHT(CELL(\"nomfichier\",A1),LEN(CELL(\"nomfichier\",A1))-FIND(\"]\",CELL(\"nomfichier\",A1))))=0,\"\",(COUNTIF('Fiche classe'!$C$21:$C$55,RIGHT(CELL(\"nomfichier\",A1),LEN(CELL(\"nomfichier\",A1))-FIND(\"]\",CELL(\"nomfichier\",A1))))))","v":""}]
[null,null,{"$f":"IF('Fiche classe'!C11=\"\",\"\",'Fiche classe'!C11)","v":"77011 Melun"},null,null,null,null,null,null,"Groupement :",null,null,null,{"$f":"IF('Fiche classe'!P16=0,\"\",'Fiche classe'!P16)","v":"C"}]
[null,null,"Professeurs S SI",null,null,null,null,null,null,"Professeur associé"]
[null,null,"Nom :",null,null,{"$f":"IF('Fiche classe'!L9=\"\",\"\",'Fiche classe'!L9)","v":"PEUTOT"},null,null,null,"Nom :",{"$f":"IF('Fiche classe'!L11=\"\",\"\",'Fiche classe'!L11)","v":"BOS"}]
[null,null,"Prénom :",null,null,{"$f":"IF('Fiche classe'!L10=\"\",\"\",'Fiche classe'!L10)","v":"Christian"},null,null,null,"Prénom :",{"$f":"IF('Fiche classe'!L12=\"\",\"\",'Fiche classe'!L12)","v":"Jean-Louis"}]
[null,null,"Spécialité :",null,null,{"$f":"IF('Fiche classe'!P9=\"\",\"\",'Fiche classe'!P9)","v":"SII"},null,null,null,"Discipline :",{"$f":"IF('Fiche classe'!P11=\"\",\"\",'Fiche classe'!P11)","v":"Physique"}]
[]
[null,null,"Intitulé du support de projet",null,null,{"$f":"IF(COUNTIF('Fiche classe'!$C$21:$C$55,RIGHT(CELL(\"nomfichier\",A1),LEN(CELL(\"nomfichier\",A1))-FIND(\"]\",CELL(\"nomfichier\",A1))))>0,VLOOKUP(RIGHT(CELL(\"nomfichier\",A1),LEN(CELL(\"nomfichier\",A1))-FIND(\"]\",CELL(\"nomfichier\",A1))),'Fiche classe'!$C$21:$Q$55,4,0),\"\")","v":""}]
[null,null,"Problèmatique :\nIntitulé exact du projet confié au groupe",null,null,{"$f":"IF(COUNTIF('Fiche classe'!$C$21:$C$55,RIGHT(CELL(\"nomfichier\",A1),LEN(CELL(\"nomfichier\",A1))-FIND(\"]\",CELL(\"nomfichier\",A1))))>0,VLOOKUP(RIGHT(CELL(\"nomfichier\",A1),LEN(CELL(\"nomfichier\",A1))-FIND(\"]\",CELL(\"nomfichier\",A1))),'Fiche classe'!$C$21:$Q$55,8,0),\"\")","v":""}]
[null,null,"Contraintes ",null,null,"Économique ",null,null,null,"Technique",null,"Environnementale"]
[]
[null,null,"Nature de la Production élèves attendue"]
[null,null,"Partenariat éventuel"]
[]
[null,null,"REPARTITON DES TACHES PREVISIONNELLES"]
[null,null,"Description des tâches confiées  (cocher le ou les élèves concernés)",null,null,null,null,null,null,null,"ÉLÈVE 1","ÉLÈVE 2","ÉLÈVE 3","ÉLÈVE 4","ÉLÈVE 5","Compétences de Conduite de Projet (Deux max)",null,null,null,"Compétences de Présentation  de Projet (Deux max)"]
[null,null,"Phase 1 : Analyser un problème",null,null,null,null,null,null,null,null,null,null,null,null,"CC n°1","Indicateurs de performance","CC N°2","Indicateurs de performance","CP n°1","Indicateurs de performance","CP N°2","Indicateurs de performance"]
[]
[]
[]
[]
[]
[null,null,"Phase 2 : Imaginer, modéliser des solutions"]
[]
[]
[]
[]
[]
[null,null,"Phase 3 : Choisir, formaliser, réaliser une solution"]
[]
[]
[]
[]
[]
[null,null,"Phase 4 : Evaluer des performances"]
[]
[]
[]
[]
[]
[]
[]
[null,null,"Planning\nprévisionnel\ndu\nprojet\n",null,null,"Etapes du projet",null,null,null,null,"Temps prévisionnel en heure"]
[null,null,null,null,null,"Analyse du problème :"]
[null,null,null,null,null,"Imaginer des solutions :"]
[null,null,null,null,null,"Réalisation de la solution :"]
[null,null,null,null,null,"Évaluation des performances :"]
[null,null,null,null,null,"Total :",null,null,null,null,null,null,null,null,{"$f":"SUM(O50:O53)","v":0}]
[]
[null,null,"Avis du Chef d'établissement"]
[]
[null,null,"Nom - Prénom :",null,null,null,null,null,null,null,null,"Date :"]
[null,null,null,null,null,null,"Remarques - Observations :",null,null,null,null,null,"Signature :"]
[]
[null,null,"Validé"]
[]
[null,null,"Non-Validé (à retravailler)"]
[]
[null,null,"Projet non conforme - annulé"]
[]
[]
[]
[null,null,"Avis de la commission de validation"]
[]
[null,null,"Chef de travaux coordinateur - Nom - Prénom",null,null,null,null,{"$f":"IF('Fiche classe'!L11=\"\",\"\",'Fiche classe'!L15 & \" \" &'Fiche classe'!L16 )","v":"MARRO Fabrice"},null,null,null,"Date :"]
[null,null,null,null,null,null,"Remarques - Observations :",null,null,null,null,null,"Signature :"]
[null,null,"Proposé à la validation"]
[]
[null,null,"À retravailler"]
[]
[null,null,"Non conforme aux exigences"]

{"sheet":"Projet9","index":15,"n_rows":77,"n_cols":23,"rows_kept":77,"cut":false,"hidden":true,"merged":[[71,6,71,8],[71,12,71,13],[72,6,77,9],[72,11,77,13],[59,6,65,9],[59,11,65,13],[68,2,68,14],[69,10,70,10],[70,2,70,6],[70,7,70,9],[70,12,70,13],[58,6,58,8],[46,2,46,14],[47,1,47,14],[48,2,53,4],[48,5,48,9],[48,10,48,14],[49,5,49,13],[50,5,50,13],[51,5,51,13],[52,5,52,13],[53,5,53,13],[54,2,54,14],[55,2,55,14],[57,2,57,6],[57,7,57,9],[57,12,57,13],[40,2,40,14],[41,2,45,5],[41,6,41,9],[42,6,42,9],[43,6,43,9],[44,6,44,9],[45,6,45,9],[34,2,34,14],[35,2,39,5],[35,6,35,9],[36,6,36,9],[37,6,37,9],[38,6,38,9],[39,6,39,9],[28,2,28,14],[29,2,33,5],[29,6,29,9],[30,6,30,9],[31,6,31,9],[32,6,32,9],[33,6,33,9],[21,2,21,9],[21,15,21,18],[21,19,21,22],[22,2,22,14],[23,2,27,5],[23,6,23,9],[24,6,24,9],[25,6,25,9],[26,6,26,9],[27,6,27,9],[20,2,20,14],[13,2,13,4],[13,5,13,14],[14,2,14,4],[14,5,14,14],[15,2,16,4],[15,5,15,8],[15,9,15,10],[15,11,15,14],[16,5,16,8],[16,9,16,10],[16,11,16,14],[17,2,17,4],[17,5,17,14],[18,2,18,4],[18,5,18,14],[10,2,10,4],[10,5,10,8],[10,10,10,14],[11,2,11,4],[11,5,11,8],[11,10,11,14],[9,2,9,4],[9,5,9,8],[9,10,9,14],[5,3,5,8],[5,9,5,12],[5,13,5,14],[6,2,6,8],[6,9,6,12],[6,13,6,14],[7,2,7,8],[7,9,7,12],[7,13,7,14],[8,2,8,8],[8,9,8,14],[0,2,0,14],[2,5,2,13],[3,2,3,14],[4,2,4,8],[4,9,4,12],[4,13,4,14]]}
[null,null,"Les largeurs de colonnes et les hauteurs de lignes sont ajustables a votre convenance"]
[]
[null,null,null,null,null,"BACCALAURÉAT SCIENTIFIQUE\nSCIENCES DE L'INGÉNIEUR\nÉPREUVE DE PROJET INTERDISCIPLINAIRE - SESSION 2016"]
[null,null,{"$f":" (\"Fiche descriptive du \"&MID(CELL(\"nomfichier\",A1),FIND(\"]\",CELL(\"nomfichier\",A1))+1,10))","v":"Fiche descriptive du Projet9"}]
[null,null,"Établissement (Nom - adresse) :",null,null,null,null,null,null,"Classe concernée : ",null,null,null,{"$f":"IF('Fiche classe'!H14=0,\"\",'Fiche classe'!H14)","v":"Ts-SI"}]
[null,null,"Lycée:",{"$f":"IF('Fiche classe'!D9:E9=\"\",\"\",'Fiche classe'!D9:E9)","v":"Léonard de Vinci "},null,null,null,null,null,"Effectif classe : ",null,null,null,{"$f":"IF('Fiche classe'!H16=0,\"\",'Fiche classe'!H16)","v":""}]
[null,null,{"$f":"IF('Fiche classe'!C10=\"\",\"\",'Fiche classe'!C10)","v":"2 bis rue Edouard Branly"},null,null,null,null,null,null,"Nombre d'élèves dans le groupe (3 mini - 5 maxi) :",null,null,null,{"$f":"IF(COUNTIF('Fiche classe'!$C$21:$C$55,RIGHT(CELL(\"nomfichier\",A1),LEN(CELL(\"nomfichier\",A1))-FIND(\"]\",CELL(\"nomfichier\",A1))))=0,\"\",(COUNTIF('Fiche classe'!$C$21:$C$55,RIGHT(CELL(\"nomfichier\",A1),LEN(CELL(\"nomfichier\",A1))-FIND(\"]\",CELL(\"nomfichier\",A1))))))","v":""}]
[null,null,{"$f":"IF('Fiche classe'!C11=\"\",\"\",'Fiche classe'!C11)","v":"77011 Melun"},null,null,null,null,null,null,"Groupement :",null,null,null,{"$f":"IF('Fiche classe'!P16=0,\"\",'Fiche classe'!P16)","v":"C"}]
[null,null,"Professeurs S SI",null,null,null,null,null,null,"Professeur associé"]
[null,null,"Nom :",null,null,{"$f":"IF('Fiche classe'!L9=\"\",\"\",'Fiche classe'!L9)","v":"PEUTOT"},null,null,null,"Nom :",{"$f":"IF('Fiche classe'!L11=\"\",\"\",'Fiche classe'!L11)","v":"BOS"}]
[null,null,"Prénom :",null,null,{"$f":"IF('Fiche classe'!L10=\"\",\"\",'Fiche classe'!L10)","v":"Christian"},null,null,null,"Prénom :",{"$f":"IF('Fiche classe'!L12=\"\",\"\",'Fiche classe'!L12)","v":"Jean-Louis"}]
[null,null,"Spécialité :",null,null,{"$f":"IF('Fiche classe'!P9=\"\",\"\",'Fiche classe'!P9)","v":"SII"},null,null,null,"Discipline :",{"$f":"IF('Fiche classe'!P11=\"\",\"\",'Fiche classe'!P11)","v":"Physique"}]
[]
[null,null,"Intitulé du support de projet",null,null,{"$f":"IF(COUNTIF('Fiche classe'!$C$21:$C$55,RIGHT(CELL(\"nomfichier\",A1),LEN(CELL(\"nomfichier\",A1))-FIND(\"]\",CELL(\"nomfichier\",A1))))>0,VLOOKUP(RIGHT(CELL(\"nomfichier\",A1),LEN(CELL(\"nomfichier\",A1))-FIND(\"]\",CELL(\"nomfichier\",A1))),'Fiche classe'!$C$21:$Q$55,4,0),\"\")","v":""}]
[null,null,"Problèmatique :\nIntitulé exact du projet confié au groupe",null,null,{"$f":"IF(COUNTIF('Fiche classe'!$C$21:$C$55,RIGHT(CELL(\"nomfichier\",A1),LEN(CELL(\"nomfichier\",A1))-FIND(\"]\",CELL(\"nomfichier\",A1))))>0,VLOOKUP(RIGHT(CELL(\"nomfichier\",A1),LEN(CELL(\"nomfichier\",A1))-FIND(\"]\",CELL(\"nomfichier\",A1))),'Fiche classe'!$C$21:$Q$55,8,0),\"\")","v":""}]
[null,null,"Contraintes ",null,null,"Économique ",null,null,null,"Technique",null,"Environnementale"]
[]
[null,null,"Nature de la Production élèves attendue"]
[null,null,"Partenariat éventuel"]
[]
[null,null,"REPARTITON DES TACHES PREVISIONNELLES"]
[null,null,"Description des tâches confiées  (cocher le ou les élèves concernés)",null,null,null,null,null,null,null,"ÉLÈVE 1","ÉLÈVE 2","ÉLÈVE 3","ÉLÈVE 4","ÉLÈVE 5","Compétences de Conduite de Projet (Deux max)",null,null,null,"Compétences de Présentation  de Projet (Deux max)"]
[null,null,"Phase 1 : Analyser un problème",null,null,null,null,null,null,null,null,null,null,null,null,"CC n°1","Indicateurs de performance","CC N°2","Indicateurs de performance","CP n°1","Indicateurs de performance","CP N°2","Indicateurs de performance"]
[]
[]
[]
[]
[]
[null,null,"Phase 2 : Imaginer, modéliser des solutions"]
[]
[]
[]
[]
[]
[null,null,"Phase 3 : Choisir, formaliser, réaliser une solution"]
[]
[]
[]
[]
[]
[null,null,"Phase 4 : Evaluer des performances"]
[]
[]
[]
[]
[]
[]
[]
[null,null,"Planning\nprévisionnel\ndu\nprojet\n",null,null,"Etapes du projet",null,null,null,null,"Temps prévisionnel en heure"]
[null,null,null,null,null,"Analyse du problème :"]
[null,null,null,null,null,"Imaginer des solutions :"]
[null,null,null,null,null,"Réalisation de la solution :"]
[null,null,null,null,null,"Évaluation des performances :"]
[null,null,null,null,null,"Total :",null,null,null,null,null,null,null,null,{"$f":"SUM(O50:O53)","v":0}]
[]
[null,null,"Avis du Chef d'établissement"]
[]
[null,null,"Nom - Prénom :",null,null,null,null,null,null,null,null,"Date :"]
[null,null,null,null,null,null,"Remarques - Observations :",null,null,null,null,null,"Signature :"]
[]
[null,null,"Validé"]
[]
[null,null,"Non-Validé (à retravailler)"]
[]
[null,null,"Projet non conforme - annulé"]
[]
[]
[]
[null,null,"Avis de la commission de validation"]
[]
[null,null,"Chef de travaux coordinateur - Nom - Prénom",null,null,null,null,{"$f":"IF('Fiche classe'!L11=\"\",\"\",'Fiche classe'!L15 & \" \" &'Fiche classe'!L16 )","v":"MARRO Fabrice"},null,null,null,"Date :"]
[null,null,null,null,null,null,"Remarques - Observations :",null,null,null,null,null,"Signature :"]
[null,null,"Proposé à la validation"]
[]
[null,null,"À retravailler"]
[]
[null,null,"Non conforme aux exigences"]

{"sheet":"Projet10","index":16,"n_rows":77,"n_cols":23,"rows_kept":77,"cut":false,"hidden":true,"merged":[[71,6,71,8],[71,12,71,13],[72,6,77,9],[72,11,77,13],[59,6,65,9],[59,11,65,13],[68,2,68,14],[69,10,70,10],[70,2,70,6],[70,7,70,9],[70,12,70,13],[58,6,58,8],[46,2,46,14],[47,1,47,14],[48,2,53,4],[48,5,48,9],[48,10,48,14],[49,5,49,13],[50,5,50,13],[51,5,51,13],[52,5,52,13],[53,5,53,13],[54,2,54,14],[55,2,55,14],[57,2,57,6],[57,7,57,9],[57,12,57,13],[40,2,40,14],[41,2,45,5],[41,6,41,9],[42,6,42,9],[43,6,43,9],[44,6,44,9],[45,6,45,9],[34,2,34,14],[35,2,39,5],[35,6,35,9],[36,6,36,9],[37,6,37,9],[38,6,38,9],[39,6,39,9],[28,2,28,14],[29,2,33,5],[29,6,29,9],[30,6,30,9],[31,6,31,9],[32,6,32,9],[33,6,33,9],[21,2,21,9],[21,15,21,18],[21,19,21,22],[22,2,22,14],[23,2,27,5],[23,6,23,9],[24,6,24,9],[25,6,25,9],[26,6,26,9],[27,6,27,9],[20,2,20,14],[13,2,13,4],[13,5,13,14],[14,2,14,4],[14,5,14,14],[15,2,16,4],[15,5,15,8],[15,9,15,10],[15,11,15,14],[16,5,16,8],[16,9,16,10],[16,11,16,14],[17,2,17,4],[17,5,17,14],[18,2,18,4],[18,5,18,14],[10,2,10,4],[10,5,10,8],[10,10,10,14],[11,2,11,4],[11,5,11,8],[11,10,11,14],[9,2,9,4],[9,5,9,8],[9,10,9,14],[5,3,5,8],[5,9,5,12],[5,13,5,14],[6,2,6,8],[6,9,6,12],[6,13,6,14],[7,2,7,8],[7,9,7,12],[7,13,7,14],[8,2,8,8],[8,9,8,14],[0,2,0,14],[2,5,2,13],[3,2,3,14],[4,2,4,8],[4,9,4,12],[4,13,4,14]]}
[null,null,"Les largeurs de colonnes et les hauteurs de lignes sont ajustables a votre convenance"]
[]
[null,null,null,null,null,"BACCALAURÉAT SCIENTIFIQUE\nSCIENCES DE L'INGÉNIEUR\nÉPREUVE DE PROJET INTERDISCIPLINAIRE - SESSION 2016"]
[null,null,{"$f":" (\"Fiche descriptive du \"&MID(CELL(\"nomfichier\",A1),FIND(\"]\",CELL(\"nomfichier\",A1))+1,10))","v":"Fiche descriptive du Projet10"}]
[null,null,"Établissement (Nom - adresse) :",null,null,null,null,null,null,"Classe concernée : ",null,null,null,{"$f":"IF('Fiche classe'!H14=0,\"\",'Fiche classe'!H14)","v":"Ts-SI"}]
[null,null,"Lycée:",{"$f":"IF('Fiche classe'!D9:E9=\"\",\"\",'Fiche classe'!D9:E9)","v":"Léonard de Vinci "},null,null,null,null,null,"Effectif classe : ",null,null,null,{"$f":"IF('Fiche classe'!H16=0,\"\",'Fiche classe'!H16)","v":""}]
[null,null,{"$f":"IF('Fiche classe'!C10=\"\",\"\",'Fiche classe'!C10)","v":"2 bis rue Edouard Branly"},null,null,null,null,null,null,"Nombre d'élèves dans le groupe (3 mini - 5 maxi) :",null,null,null,{"$f":"IF(COUNTIF('Fiche classe'!$C$21:$C$55,RIGHT(CELL(\"nomfichier\",A1),LEN(CELL(\"nomfichier\",A1))-FIND(\"]\",CELL(\"nomfichier\",A1))))=0,\"\",(COUNTIF('Fiche classe'!$C$21:$C$55,RIGHT(CELL(\"nomfichier\",A1),LEN(CELL(\"nomfichier\",A1))-FIND(\"]\",CELL(\"nomfichier\",A1))))))","v":""}]
[null,null,{"$f":"IF('Fiche classe'!C11=\"\",\"\",'Fiche classe'!C11)","v":"77011 Melun"},null,null,null,null,null,null,"Groupement :",null,null,null,{"$f":"IF('Fiche classe'!P16=0,\"\",'Fiche classe'!P16)","v":"C"}]
[null,null,"Professeurs S SI",null,null,null,null,null,null,"Professeur associé"]
[null,null,"Nom :",null,null,{"$f":"IF('Fiche classe'!L9=\"\",\"\",'Fiche classe'!L9)","v":"PEUTOT"},null,null,null,"Nom :",{"$f":"IF('Fiche classe'!L11=\"\",\"\",'Fiche classe'!L11)","v":"BOS"}]
[null,null,"Prénom :",null,null,{"$f":"IF('Fiche classe'!L10=\"\",\"\",'Fiche classe'!L10)","v":"Christian"},null,null,null,"Prénom :",{"$f":"IF('Fiche classe'!L12=\"\",\"\",'Fiche classe'!L12)","v":"Jean-Louis"}]
[null,null,"Spécialité :",null,null,{"$f":"IF('Fiche classe'!P9=\"\",\"\",'Fiche classe'!P9)","v":"SII"},null,null,null,"Discipline :",{"$f":"IF('Fiche classe'!P11=\"\",\"\",'Fiche classe'!P11)","v":"Physique"}]
[]
[null,null,"Intitulé du support de projet",null,null,{"$f":"IF(COUNTIF('Fiche classe'!$C$21:$C$55,RIGHT(CELL(\"nomfichier\",A1),LEN(CELL(\"nomfichier\",A1))-FIND(\"]\",CELL(\"nomfichier\",A1))))>0,VLOOKUP(RIGHT(CELL(\"nomfichier\",A1),LEN(CELL(\"nomfichier\",A1))-FIND(\"]\",CELL(\"nomfichier\",A1))),'Fiche classe'!$C$21:$Q$55,4,0),\"\")","v":""}]
[null,null,"Problèmatique :\nIntitulé exact du projet confié au groupe",null,null,{"$f":"IF(COUNTIF('Fiche classe'!$C$21:$C$55,RIGHT(CELL(\"nomfichier\",A1),LEN(CELL(\"nomfichier\",A1))-FIND(\"]\",CELL(\"nomfichier\",A1))))>0,VLOOKUP(RIGHT(CELL(\"nomfichier\",A1),LEN(CELL(\"nomfichier\",A1))-FIND(\"]\",CELL(\"nomfichier\",A1))),'Fiche classe'!$C$21:$Q$55,8,0),\"\")","v":""}]
[null,null,"Contraintes ",null,null,"Économique ",null,null,null,"Technique",null,"Environnementale"]
[]
[null,null,"Nature de la Production élèves attendue"]
[null,null,"Partenariat éventuel"]
[]
[null,null,"REPARTITON DES TACHES PREVISIONNELLES"]
[null,null,"Description des tâches confiées  (cocher le ou les élèves concernés)",null,null,null,null,null,null,null,"ÉLÈVE 1","ÉLÈVE 2","ÉLÈVE 3","ÉLÈVE 4","ÉLÈVE 5","Compétences de Conduite de Projet (Deux max)",null,null,null,"Compétences de Présentation  de Projet (Deux max)"]
[null,null,"Phase 1 : Analyser un problème",null,null,null,null,null,null,null,null,null,null,null,null,"CC n°1","Indicateurs de performance","CC N°2","Indicateurs de performance","CP n°1","Indicateurs de performance","CP N°2","Indicateurs de performance"]
[]
[]
[]
[]
[]
[null,null,"Phase 2 : Imaginer, modéliser des solutions"]
[]
[]
[]
[]
[]
[null,null,"Phase 3 : Choisir, formaliser, réaliser une solution"]
[]
[]
[]
[]
[]
[null,null,"Phase 4 : Evaluer des performances"]
[]
[]
[]
[]
[]
[]
[]
[null,null,"Planning\nprévisionnel\ndu\nprojet\n",null,null,"Etapes du projet",null,null,null,null,"Temps prévisionnel en heure"]
[null,null,null,null,null,"Analyse du problème :"]
[null,null,null,null,null,"Imaginer des solutions :"]
[null,null,null,null,null,"Réalisation de la solution :"]
[null,null,null,null,null,"Évaluation des performances :"]
[null,null,null,null,null,"Total :",null,null,null,null,null,null,null,null,{"$f":"SUM(O50:O53)","v":0}]
[]
[null,null,"Avis du Chef d'établissement"]
[]
[null,null,"Nom - Prénom :",null,null,null,null,null,null,null,null,"Date :"]
[null,null,null,null,null,null,"Remarques - Observations :",null,null,null,null,null,"Signature :"]
[]
[null,null,"Validé"]
[]
[null,null,"Non-Validé (à retravailler)"]
[]
[null,null,"Projet non conforme - annulé"]
[]
[]
[]
[null,null,"Avis de la commission de validation"]
[]
[null,null,"Chef de travaux coordinateur - Nom - Prénom",null,null,null,null,{"$f":"IF('Fiche classe'!L11=\"\",\"\",'Fiche classe'!L15 & \" \" &'Fiche classe'!L16 )","v":"MARRO Fabrice"},null,null,null,"Date :"]
[null,null,null,null,null,null,"Remarques - Observations :",null,null,null,null,null,"Signature :"]
[null,null,"Proposé à la validation"]
[]
[null,null,"À retravailler"]
[]
[null,null,"Non conforme aux exigences"]